Workbook

Sheet Inicio
A1: Secretaría de Educación Pública
A2: Subsecretaría de Educación Básica
A3: Dirección General de Gestión Escolar y Enfoque Territorial
A5: Programa Anual de Trabajo (PAT) 2023
A11: ① | B11: Seleccione la Entidad
B12: Durango
A14: ② | B14: Fecha de validación
B15: Dia | C15: Mes | D15: Año
B16: 08 | C16: Marzo | D16: 2023
B19: Monto asignado al PEEI en el Convenio para la operación
A20: ③
B21: 87576494.98
B24: LOGO ENTIDAD
I60: 2016

Sheet B_D_
A1: Secretaría de Educación Pública
A2: Subsecretaría de Educación Básica
A3: Dirección General de Gestión Escolar y Enfoque Territorial
B5: Programa Anual de Trabajo (PAT) 2023
J7: Fecha de validación
J8: =Inicio!B16 -> 08 | K8: =Inicio!C16 -> Marzo | L8: =Inicio!D16 -> 2023
B9: Nombre de la Entidad Federativa | D9: =Inicio!B12 -> Durango
B11: Monto asignado al PEEI en el Convenio para la operación | E11: =Inicio!B21 -> 87576494.98
B14: CENTROS INCORPORADOS, ALUMNOS BENEFICIADOS Y PERSONAL PARTICIPANTE EN EL PEEI
B15: CANTIDAD DE CENTROS ESCOLARES Y ALUMNOS | G15: CONCENTRADO CANTIDAD DE PERSONAL DIRECTIVO, AGENTES EDUCATIVOS, PERSONAL DE APOYO
B16: Servicios de atención de educación inicial | C16: TOTAL | D16: Matrícula escolar | F16: Número de grupos | G16: Número de Directivos o Responsables | H16: Número Total de Figuras Educativas | I16: Número de Agentes Educativos (frente a grupo o sala) | J16: No. de Centros Escolares que brindan Servicio de Alimentación con recursos del PEEI | K16: No. de niñas y niños que reciben Servicio de Alimentación con recursos del PEEI
D17: NIÑAS | E17: NIÑOS
B18: Centro de Atención Infantil Federalizado | C18: 6 | D18: 259 | E18: 236 | F18: 29 | G18: 6 | H18: 349 | I18: 87 | J18: 0 | K18: 0
B19: CCAPI Centros Comunitarios de Atención a la Primera Infancia | C19: 12 | D19: 102 | E19: 127 | F19: 12 | G19: 12 | H19: 0 | I19: 12 | J19: 12 | K19: 12
B20: CENDI en proceso de regularización con inmueble federalizado | C20: 6 | D20: 1176 | E20: 1219 | F20: 80 | G20: 7 | H20: 396 | I20: 222 | J20: 7 | K20: 2395
B21: CENDI en proceso de regularización con apoyo voluntario | C21: 6 | D21: 476 | E21: 492 | F21: 46 | G21: 6 | H21: 183 | I21: 96 | J21: 6 | K21: 968
B22: CEII Centro de Educación Inicial Indígena | C22: 15 | D22: 204 | E22: 201 | F22: 15 | G22: 15 | H22: 15 | I22: 15 | J22: 0 | K22: 0
B23: Total | C23: =SUM(C18:C22) -> 45 | D23: 2217 | E23: 2275 | F23: 182 | G23: 46 | H23: 943 | I23: 432 | J23: 25 | K23: 3375
B25: Agentes Educativos Estrategia Visitas a Hogares | C25: Agentes Educativos | E25: Total de Municipios que atienden | F25: Población que atienden | H25: Familas atendidas | I25: Mujeres embarazadas
C26: Mujeres | D26: Hombres | F26: NIÑAS | G26: NIÑOS
B27: Total | C27: 15 | D27: 0 | E27: 2 | F27: 152 | G27: 141 | H27: 282 | I27: 10

Sheet APOYO 1
A1: Secretaría de Educación Pública
A2: Subsecretaría de Educación Básica
A3: Dirección General de Gestión Escolar y Enfoque Territorial
B5: Programa Anual de Trabajo (PAT) 2023
I7: Fecha de validación
I8: =Inicio!B16 -> 08 | J8: =Inicio!C16 -> Marzo | L8: =Inicio!D16 -> 2023
B9: Nombre de la Entidad Federativa | D9: =Inicio!B12 -> Durango
B11: Monto asignado al PEEI en el Convenio para la operación | E11: =Inicio!B21 -> 87576494.98
B13: APOYO 1. FORTALECIMIENTO DE LOS CAI FEDERALIZADO Y LOS CENDI EN PROCESO DE REGULARIZACIÓN CON INMUEBLE FEDERALIZADO
B15: DIAGNÓSTICO Y METAS A ALCANZAR
B17: DIAGNÓSTICO DEL APOYO
B18: Este apoyo ha sido una gran fortaleza ya que ha permitido que en los seis Centros de Atención Infantil (CAI) federalizados, se atiendan necesidades relacionadas con la infraestructura (preventiva y correctiva), así como de la seguridad y protección en base a los dictámenes de Protección Civil para la población infantil que se atiende en los centros continúan siendo en relación a el mantenimiento para brindar las condiciones de seguridad y mejoras en la infraestructura porque se considera las reglas de operación emitidas para el ejercicio de este programa son limitativas ante las necesidades reales que se tienen en los centros, las cuales no siempre pueden ser subsanadas con los ingresos propios, dado que las aportaciones de los padres son voluntarias. A partir de las visitas realizadas a los CAI se identifica que tanto a los directivos, docentes y familias les han sido satisfactorias la mayoría de las mejoras que se han hecho en los centros en cuanto a infraestructura y seguridad y que a los NN les gustan los materiales didácticos, los juegos infantiles, los gimnasios, así como los libros de Mi primera biblioteca, sin embargo, los directivos y docentes también señalan que hay necesidades que no han sido atendidas debido a que fue eliminado de las Reglas de Operación (antes Lineamientos) como es el caso sobre todo en lo referente a la adquisición de material didáctico, mobiliario y equipamiento sobre todo aquellos artículos necesarios para la operación de los centros y que es necesario renovar debido al desgaste por su uso como lo son sábanas, loza, colchones, ollas y sartenes, así como diversos enseres de cocina, y de limpieza entre otros, o la adquisición de nuevas bibliotecas ya que desde 2021 no se han recibido. Adicionalmente señalan las directoras de los CAI federalizados, que de algunos bienes de los que se ha dotado como por ejemplo los equipos fijos contra incendio, las estufas, minisplits o las cámaras del sistema de circuito cerrado, las reglas de operación no contemplan el mantenimiento y/o reparación de los mismos gastos que no pueden ser asumidos con ingresos propios de los CAI. Otra situación que se ha enfrentado en el ejercicio de este apoyo es que la realización de obras de mantenimiento preventivo y correctivo están condicionadas a los procesos de licitación y ejecución del recurso en el estado, dando por resultado que, dada la premura de los tiempos, algunos trabajos no han sido de la calidad esperada, lo que genera que, a veces, para el siguiente ejercicio de recursos del PEEI se solicite el mantenimiento o reparación de obras ya efectuadas. Finalmente, como resultado de la participación de los padres y madres de familia, a través de los Comités de Contraloría Social, la comunidad está informada de las obras y los beneficios del Apoyo 1, además de que participan en la verificación de los trabajos autorizados para cada uno de los CAI, constatando con ello que todos los beneficios brindados a través de este beneficio cumplen con las condiciones establecidas por la norma para brindar un servicio de calidad en las mejores condiciones para los niños y niñas.
B22: NOTA: En las siguientes celdas, anotar la información solicitada para cada uno de los CAI y CENDI que operan en la entidad.
B24: CAI Federalizado.
B25: NOMBRE DEL CAI FEDERALIZADO y CCT | C25: TIPO DE MANTENIMIENTO | D25: RUBROS DE GASTOS (DE ACUERDO A REGLAS DE OPERACIÓN) | G25: Acción de seguimiento a la meta | K25: PERÍODO DE REALIZACIÓN DE LA META | L25: MONTO ASIGNADO
B26: CENTRO DE ATENCIÓN INFANTIL N° 1 10DDI0002P | C26: Mantenimiento preventivo. | G26: N/A | K26: N/A | L26: 0
C27: Mantenimiento correctivo. | D27: Impermeabilización. | G27: Impermeabilización de los dos edificios que conforman este CAI con una superficie de 828 m2, para lo cual se requieren 43 cubetas de impermeabilizante. Incluye mano de obra y materiales así como el retiro del material anterior en áreas señaladas, así como la limpieza y retiro de material residual al término de la obra. Esta acción es necesaria de llevar a cabo porque en la temporada de lluvia se presentaron filtraciones en la segunda planta que dañan la infraestructura de los edificios; acción que viene a beneficiar a 250 niños. | K27: abri - diciembre | L27: 102000
C28: Mantenimiento correctivo. | D28: Cambio de lámparas LED. | G28: Adquisición, suministro e instalación de 270 lámparas Led para sustitución de la misma cantidad de lámparas existentes en diferentes áreas del CAI. Incluye mano de obra y retiro de los materiales residuales. Esta obra es necesaria para garantizar la correcta iluminación de los espacios en los que están los 250 niños. | K28: abril - diciembre | L28: 70000
C29: Mantenimiento correctivo. | D29: Mantenimiento y desazolve de drenajes y alcantarillas. | G29: Mantenimiento y desazolve de drenajes y alcantarillas ubicados en diferentes áreas del CAI. Incluye materiales y mano de obra necesarios para su correcto funcionamiento. Esta actividad es importante de realizar para que la tubería del drenaje se mantenga limpia y en óptimas condiciones; Suministro de servicio para desazolve de 2 registros de desague de las instalaciones hidraúlicas de todo el centro y sanitarios. Esta actividad es importante de realizar para que la tubería del drenaje se mantenga limpio y en óptimas condiciones y se trabaje en benficio de los 250 niños. | K29: abril - diciembre | L29: 7000
C30: Mantenimiento correctivo. | D30: Rehabilitación y lavado de cisterna. | G30: Lavado de dos cisternas de capacidad de 10000 lts cada una y 5 tinacos de 1000 lts. de capacidad cada uno. Incluye los materiales y mano de obra necesarios. Es necesario llevar a cabo esta actividad para dar cumplimiento a la recomendación emitida por COPRISED estatal para garantizar que el agua que se utiliza en el servicio se encuentre en buenas condiciones y para beneficio de los 250 niños. | K30: abril - diciembre | L30: 7000
C31: Protección Civil y Seguridad. | D31: Dictamen de seguridad estructural. | G31: Contratación de perito especializado para llevar a cabo la revisión del edificio del CAI, así como para la elaboración y autorización del dictamen de seguridad estructural respectivo. Esta actividad es para dar cumplimiento a la normativa vigente y garantizar la seguridad de 250 niños. | K31: abril - diciembre | L31: 1670
C32: Protección Civil y Seguridad. | D32: Dictamen de gas. | G32: Contratación de perito especializado para llevar a cabo la revisión de las instalaciones de gas del CAI, así como para la elaboración y autorización del dictamen de gas respectivo. Esta actividad es para dar cumplimiento a la normativa vigente y garantizar la seguridad de 250 niños. | K32: abril - diciembre | L32: 1670
C33: Protección Civil y Seguridad. | D33: Dictamen eléctrico. | G33: Contratación de perito especializado para llevar a cabo la revisión de las instalaciones eléctricas del CAI, así como para la elaboración y autorización del dictamen eléctrico respectivo. Esta actividad es para dar cumplimiento a la normativa vigente y garantizar la seguridad de 250 niños. | K33: abril - diciembre | L33: 1670
C34: Protección Civil y Seguridad. | D34: Póliza de seguro para bebés, niñas y niños. | G34: Contratación de Póliza de seguro de responsabilidad civil para guarderías. Esta actividad es para dar cumplimiento a la normativa vigente y garantizar la seguridad de 250 niños. | K34: abril - diciembre | L34: 60000
C35: Protección Civil y Seguridad. | D35: Programa Interno de Protección Civil. | G35: Contratación de Tercer Acreditado Consultor Nivel 3. Esta actividad es para dar cumplimiento a la normativa vigente y garantizar la seguridad de 250 niños. | K35: abril - diciembre | L35: 15000
C36: Protección Civil y Seguridad. | D36: Dictamen de certificación integral por tercer acreditado. | G36: Contratación de Tercer Acreditado. Esta actividad es para dar cumplimiento a la normativa vigente y garantizar la seguridad de 250 niños. | K36: abril - diciembre | L36: 3000
C37: Protección Civil y Seguridad. | D37: Contactos de seguridad y de protección infantil. | G37: Suministro y colocación de 20 contactos doble polarizado kley, 20 placas dobel plastica para interperie, para aulas de niños y niñas que incluya los materilaes necesarios asi como la mano de obra. | K37: abril - diciembre | L37: 15000
C38: Protección Civil y Seguridad | D38: Adquisición, habilitación y mantenimiento de circuito cerrado con cámaras en las salas educativas. | G38: Suministro e instalación de una camara Bullet de dos megapiceles/ super/adapt/lente de 2.8 mm/107 grados de apertura/IR de 60 metros, incluye el retiro de una camara sin funcionamiento y la istalación, configuración, tendido de cable, accesorios y todo lo necesario para su correcta instalación, considerando la mano de obra | K38: abril - diciembre | L38: 40990
B39: CENTRO DE ATENCIÓN INFANTIL N° 2 10DDI0005M | C39: Mantenimiento preventivo. | D39: Revisión y cambio de instalaciones hidráulicas. | G39: Revisión y mantenimiento del sistema purificador de agua modelo OI 400GPD Filtro para agua potable ubicado en el área de cocina que incluye: filtro sedimentos 2.5*10, filtro carbón activado granular 2.5*10, filtro carbón activado block 2.5*10, membrana de ósmosis inversa activado en línea, lámpara UV 6 wats, ubicado en el área de cocina; incluye todos los materiales y mano de obra necesarios para su correcto funcionamiento. Es necesario llevar a cabo el mantenimiento del sistema purificador de agua ya que no ha recibido un adecuado mantenimiento desde que se instaló por lo que su uso está en este momento está restringido por la importancia que tiene. Se beneficiarán 242 niños. | K39: abril - diciembre | L39: 8000
C40: Mantenimiento correctivo. | D40: Cambio de tazas de baño para niñas y niños, mingitorio de cerámica, lavabos, herrajes y llaves. | G40: Adquisición e instalación de 12 asientos para sanitario infantil con tapa color blanco y 5 asientos para sanitario grande también para los baños de los niños y niñas en color blanco. Esta actividad es necesario realizarla para dar cumplimiento a las observaciones que efectuó el supervisor del DIF durante las visitas realizadas al CAI y con esto beneficiar a 242 niños. | K40: abril - diciembre | L40: 12000
C41: Mantenimiento correctivo. | D41: Reparación de puertas, ventanas y pasamanos. | G41: Adquisición e instalación de 7 puertas tipo INIFED con marco de aluminio incluido, de medidas 2.80 x 0.95 mts. cada una, para las siguientes áreas: una puerta Lactantes II, una puerta Lactantes III, 2 puertas para maternal I, una puerta cocina de bebés, una puerta para sala de lactancia y una puerta para el departamento médico,así como todos los materiales y mano de obra para su correcta instalación y uso, incluir la limpieza y retiro de los materiales al término de la obra. Esta obra es necesaria ya que las puertas existentes se encuentran en muy malas condiciones debido al uso y tiempo de adquisición de las mismas, por lo que representan una situación de riesgo para los los 82 niños de las salas de inicial. | K41: abril - diciembre | L41: 70000
C42: Mantenimiento correctivo. | D42: Cambio de losetas en pisos y muros de las salas educativas. | G42: Adquisición, cambio e instalación de vitromuro en el área de cocina para un total de 80 m2 de azulejo color marfil, de medidas de 0.20 x 0.30 cms., incluye todos los materiales y mano de obra para su correcta instalación y uso así como la limpieza y retiro de los materiales al término de la obra. Se requiere realizar esta obra debido a que el azulejo existente en algunas áreas se encuentra despegando y en otras está a punto de caer, además de que es necesario mantener la limpieza e higiene del área; con esta obra se benefician 242 alumnos. | K42: abril - diciembre | L42: 20000
C43: Mantenimiento correctivo. | D43: Rehabilitación de domos y techos de policarbonato. | G43: Adquisición e instalación de domo de lámina para el área recreativa de la institución, medidas de 70 mts. de largo por 20 mts. de ancho. El domo se colocará en una estructura metálica ya existente e incluye el retiro de la mallasombra que actualmente se encuentra colocada, así como materiales, mano de obra y limpieza del área. Esta obra es necesaria debido a que por las condiciones climáticas que prevalecen en la región se ha deteriorado el domo de mallasombra existente ya que no es un material resistente y durable, por lo que se requiere de un techo de lámina para que los alumnos se mantengan protegidos del sol ya que en verano la temperatura sobrepasa los 40º C. Con esta obra se beneficiarán 242 niños. | K43: abril - diciembre | L43: 102000
C44: Protección Civil y Seguridad. | D44: Dictamen de seguridad estructural. | G44: Contratación de perito especializado para llevar a cabo la revisión del edificio del CAI, así como para la elaboración y autorización del dictamen de seguridad estructural respectivo. Esta actividad es para dar cumplimiento a la normativa vigente y garantizar la seguridad de 242 niños. | K44: abril - diciembre | L44: 1660
C45: Protección Civil y Seguridad. | D45: Dictamen de gas. | G45: Contratación de perito especializado para llevar a cabo la revisión de las instalaciones de gas del CAI, así como para la elaboración y autorización del dictamen de gas respectivo. Esta actividad es para dar cumplimiento a la normativa vigente y garantizar la seguridad de 242 niños. | K45: abril - diciembre | L45: 1670
C46: Protección Civil y Seguridad. | D46: Dictamen eléctrico. | G46: Contratación de perito especializado para llevar a cabo la revisión de las instalaciones eléctricas del CAI, así como para la elaboración y autorización del dictamen eléctrico respectivo. Esta actividad es para dar cumplimiento a la normativa vigente y garantizar la seguridad de 242 niños. | K46: abril - diciembre | L46: 1670
C47: Protección Civil y Seguridad. | D47: Póliza de seguro para bebés, niñas y niños. | G47: Contratación de Póliza de seguro de responsabilidad civil para guarderías. Esta actividad es para dar cumplimiento a la normativa vigente y garantizar la seguridad de 242 niños. | K47: abril - diciembre | L47: 60000
C48: Protección Civil y Seguridad. | D48: Programa Interno de Protección Civil. | G48: Contratación de Tercer Acreditado Consultor Nivel 3. Esta actividad es para dar cumplimiento a la normativa vigente y garantizar la seguridad de 242 niños. | K48: abril - diciembre | L48: 15000
C49: Protección Civil y Seguridad. | D49: Dictamen de certificación integral por tercer acreditado. | G49: Contratación de Tercer Acreditado. Esta actividad es para dar cumplimiento a la normativa vigente y garantizar la seguridad de 242 niños. | K49: abril - diciembre | L49: 3000
C50: Protección Civil y Seguridad. | D50: Sistemas fijos contra incendios. | G50: Revisión y mantenimiento del sistema de equipo contra incendios el cual consta de dos bombas (una de combustión eléctrica y otra interna). El mantenimiento será de tipo eléctrico, mecánico e hidráulico en las siguientes áreas: moto bomba con motor a diésel, bomba jockey en turbina, tablero de control de bomba eléctrica y de diésel, tren de descarga, presiones de agua, tuberías, componentes y accesorios. Incluye los materiales y mano de obra necesario para el su correcto funcionamiento. Es urgente realizar esta obra debido a que desde el año 2019 en que se instaló el equipo fijo contra incendios no se ha llevado a cabo ningún mantenimiento, el cual garantizará el correcto funcionamiento del mismo. Con esta obra se beneficiarán 242 alumnos. | K50: abril - diciembre | L50: 30000
B51: CENTRO DE ATENCIÓN INFANTIL N° 3 10DDI0001Q | C51: Mantenimiento preventivo. | D51: Revisión de la instalación de tanque de gas LP estacionario y reparaciones menores. | G51: Mantenimiento preventivo del tanque de gas LP, revisión de válvulas de seguridad y conexiones del tanque así como restitución de piezas dañadas o que requieran cambio. Incluye los materiales y mano de obra necesarios para su correcto funcionamiento. Esta actividad es necesaria a fin de preveer accidentes así como mejorar el suministro y ahorro del gas en beneficio de 177 niños. | K51: abril - diciembre | L51: 5000
C52: Mantenimiento correctivo. | D52: Reparación de puertas, ventanas y pasamanos. | G52: Adquisición y colocación de 6 puertas tipo INIFED, incluyendo marcos y chapas con llaves, en igual cantidad de salones de lactantes y maternales. Medidas de las seis puertas son de 2.41 x 0.91 mts. y 4 cms de grosor. Incluye el retiro de las puertas existentes así como los materiales y mano de obra necesarios para su correcto funcionamiento. Esta obra es necesaria debido a que las puertas actuales se encuentran en malas condiciones lo que puede generar accidentes a niños y personal; Adquisición y colocación de 1 puerta de madera de tambor, sobre marco existente, color caoba, de medidas de 2.04 mts de alto x 0.81 cms de ancho x 4.0 cms de grosor. Incluye mano de obra, chapa, bisagras, así como los materiales necesarios para su correcto funcionamiento. Esta obra es necesaria debido a que las puertas actuales se encuentran en malas condiciones lo que puede generar accidentes a niños y personal; con esto se beneficiará a 177 niños. | K52: abril - diciembre | L52: 68000
C53: Mantenimiento correctivo. | D53: Rehabilitación y lavado de cisterna. | G53: Lavado de una cisterna con cárcamo de capacidad de 10000 lts. y 4 tinacos de 1100 lts. de capacidad cada uno. Incluye los materiales y mano de obra necesarios. Esta obra es necesaria para garantizar que el agua que se utiliza en el servicio se encuentre en buenas condiciones y para beneficio de los 177 niños. | K53: abril - diciembre | L53: 7000
C54: Mantenimiento correctivo. | D54: Cambio de tazas de baño para niñas y niños, mingitorio de cerámica, lavabos, herrajes y llaves. | G54: Adquisición e instalación de 2 WC tipo codo con tanque y herrajes. Para llevar a cabo esta obra se requiere la realización de varias acciones las cuales son: retiro del piso existente y su nivelación; colocación de 6 mts2 de piso porcelanite P-Sundec FD nogal de medidas de 0.18 x 0.55 cms.; conservar el desague existente; colocación de 19 m2 de vitromuro porcelanite A-Dent urban block FD de 0.30 x 0.45 cms. 1A; aplicación de pintura de esmalte en color blanco para 2 puertas interiores de herrería de medidas de 1.20 x 0.80 mts. Incluye mano de obra, retiro de escombro, limpieza y todos los materiales para su correcto funcionamiento. Esta obra es necesaria debido a que estos baños son un área de uso común para los grupos de maternales y por la antiguedad ya no son funcionales; Adquisición e instalación de 1 lavabo para empotrar de cerámica, color blanco, rectangular, de medidas de 18" x 7.5". Dado que este lavabo es usado por los niños, será necesario colocarle soportes de tubo galvanizado para evitar que se cuelgue. Incluye adquisición y colocación de tubería para el desague así como la adquisición y colocación de llave push. Se contemplan todos los materiales y mano de obra necesarios para su correcto funcionamiento; se busca el beneficio de 177 niños. | K54: abril - diciembre | L54: 55000
C56: Protección Civil y Seguridad. | D56: Dictamen de seguridad estructural. | G56: Contratación de perito especializado para llevar a cabo la revisión del edificio del CAI, así como para la elaboración y autorización del dictamen de seguridad estructural respectivo. Esta actividad es para dar cumplimiento a la normativa vigente y garantizar la seguridad de 177 niños. | K56: abril - diciembre | L56: 1670
C57: Protección Civil y Seguridad. | D57: Dictamen de gas. | G57: Contratación de perito especializado para llevar a cabo la revisión de las instalaciones de gas del CAI, así como para la elaboración y autorización del dictamen de gas respectivo. Esta actividad es para dar cumplimiento a la normativa vigente y garantizar la seguridad de 177 niños. | K57: abril - diciembre | L57: 1670
C58: Protección Civil y Seguridad. | D58: Dictamen eléctrico. | G58: Contratación de perito especializado para llevar a cabo la revisión de las instalaciones eléctricas del CAI, así como para la elaboración y autorización del dictamen eléctrico respectivo. Esta actividad es para dar cumplimiento a la normativa vigente y garantizar la seguridad de 177 niños. | K58: abril - diciembre | L58: 1670
C59: Protección Civil y Seguridad. | D59: Póliza de seguro para bebés, niñas y niños. | G59: Contratación de Póliza de seguro de responsabilidad civil para guarderías. Esta actividad es para dar cumplimiento a la normativa vigente y garantizar la seguridad de 177 niños. | K59: abril - diciembre | L59: 60000
C60: Protección Civil y Seguridad. | D60: Programa Interno de Protección Civil. | G60: Contratación de Tercer Acreditado Consultor Nivel 3. Esta actividad es para dar cumplimiento a la normativa vigente y garantizar la seguridad de 177 niños. | K60: abril - diciembre | L60: 15000
C61: Protección Civil y Seguridad. | D61: Dictamen de certificación integral por tercer acreditado. | G61: Contratación de Tercer Acreditado. Esta actividad es para dar cumplimiento a la normativa vigente y garantizar la seguridad de 177 niños. | K61: abril - diciembre | L61: 3000
C62: Protección Civil y Seguridad. | D62: Material retardante de fuego para mobiliario, cortinas y plafones entre otros. | G62: Suministro y aplicación de material retardante de fuego en área de comedor para 36 mesas infantiles con cubierta de formica, 122 sillas infantiles, 8 cortinas de 1.84 x 1.46 mts cada una y un escritorio secretarial. Incluye todos los materiales y mano de obra requeridos. Esta actividad es necesaria para dar cumplimiento a la normativa vigente en materia de seguridad y en beneficio de 177 niños. | K62: abril - diciembre | L62: 25000
C63: Protección Civil y Seguridad. | D63: Restitución de material del botiquín que se haya agotado. | G63: Suministro de materiales para botiquín de primeros auxilios: un litro de agua oxigenada, un frasco de isodine de 120 ml., una caja de guantes estériles con 100 piezas, dos vendas elásticas de 20 cm, dos vendas elásticas de 15 cms, dos vendas elásticas de 10 cms., y dos vendas elásticas de 5 cms., un paquete de algodón plisado de 300 grs., un spray de salbutamol solución para nebulizaciones de 5mg/mL, un paquete c/5 piezas de gasas absorbentes de 7.5 x 5.0 cms., un litro de jabón quirúrgico, un bote de solución de cloruro de sodio de medio litro, dos frascos de medio litro de suero oral de sabores y una caja de bandas adhesivas infantiles con 20 piezas cada una. Esta actividad es necesaria para restituir el material con el que se cuenta en el CAI y que ya tiene fecha de caducidad vencida y con esto beneficiar a 177 niños. | K63: abril - diciembre | L63: 3000
C64: Protección Civil y Seguridad. | D64: Sistemas fijos contra incendios. | G64: Revisión y mantenimiento del sistema de equipo contra incendios el cual consta de dos bombas (una de combustión eléctrica y otra interna). El mantenimiento será de tipo eléctrico, mecánico e hidráulico en las siguientes áreas: moto bomba con motor a diésel, bomba jockey en turbina, tablero de control de bomba eléctrica y de diésel, tren de descarga, presiones de agua, tuberías, componentes y accesorios. Incluye los materiales y mano de obra necesario para el su correcto funcionamiento. Es urgente realizar esta obra debido a que desde el año 2019 en que se instaló el equipo fijo contra incendios no se ha llevado a cabo ningún mantenimiento, el cual garantizará el correcto funcionamiento del mismo. Con esta obra se beneficiarán 242 alumnos. | K64: abril - diciembre | L64: 78990
B65: CENTRO DE ATENCIÓN INFANTIL N° 4 10DDI0006L | C65: Mantenimiento preventivo. | G65: N/A | K65: N/A | L65: 0
C66: Mantenimiento correctivo. | D66: Impermeabilización. | G66: Suministro y aplicación de 489m2 de impermeabilizante asfáltico SBS prefabricado de 4 mts., qU. Incluye el retiro del material viejo, limpieza y aplicación del impermeabilizante nuevo. Esta acción es necesaria de llevar a cabo porque en la temporada de lluvia de presentaron filtraciones en la segunda planta que dañan la infraestructura de los edificios; acción que viene a beneficiar a 280 niños. | K66: abril - diciembre | L66: 177000
C67: Mantenimiento correctivo. | D67: Rehabilitación y lavado de cisterna. | G67: Limpieza y lavado de dos cistenas de capacidad de 10000 lts cada una, así como 4 tinacos de capacidad de 1000 lts cada uno. Incluye los materiales y mano de obra necesarios. Es necesario llevar a cabo esta actividad para garantizar que el agua que se utiliza en el servicio se encuentre en buenas condiciones y para beneficio de los 280 niños. | K67: abril - diciembre | L67: 9000
C68: Protección Civil y Seguridad. | D68: Dictamen de seguridad estructural. | G68: Contratación de perito especializado para llevar a cabo la revisión del edificio del CAI, así como para la elaboración y autorización del dictamen de seguridad estructural respectivo. Esta actividad es para dar cumplimiento a la normativa vigente y garantizar la seguridad de 280 niños. | K68: abril - diciembre | L68: 1660
C69: Protección Civil y Seguridad. | D69: Dictamen de gas. | G69: Contratación de perito especializado para llevar a cabo la revisión de las instalaciones de gas del CAI, así como para la elaboración y autorización del dictamen de gas respectivo. Esta actividad es para dar cumplimiento a la normativa vigente y garantizar la seguridad de 280 niños. | K69: abril - diciembre | L69: 1670
C70: Protección Civil y Seguridad. | D70: Dictamen eléctrico. | G70: Contratación de perito especializado para llevar a cabo la revisión de las instalaciones eléctricas del CAI, así como para la elaboración y autorización del dictamen eléctrico respectivo. Esta actividad es para dar cumplimiento a la normativa vigente y garantizar la seguridad de 280 niños. | K70: abril - diciembre | L70: 1670
C71: Protección Civil y Seguridad. | D71: Póliza de seguro para bebés, niñas y niños. | G71: Contratación de Póliza de seguro de responsabilidad civil para guarderías. Esta actividad es para dar cumplimiento a la normativa vigente y garantizar la seguridad de 280 niños. | K71: abril - diciembre | L71: 60000
C72: Protección Civil y Seguridad. | D72: Programa Interno de Protección Civil. | G72: Contratación de Tercer Acreditado Consultor Nivel 3. Esta actividad es para dar cumplimiento a la normativa vigente y garantizar la seguridad de 280 niños. | K72: abril - diciembre | L72: 15000
C73: Protección Civil y Seguridad. | D73: Dictamen de certificación integral por tercer acreditado. | G73: Contratación de Tercer Acreditado. Esta actividad es para dar cumplimiento a la normativa vigente y garantizar la seguridad de 280 niños. | K73: abril - diciembre | L73: 3000
C74: Protección Civil y Seguridad. | D74: Película anti estallante para ventanas, puertas y espejos. | G74: Adquisición e instalación de película antiastillante en un espejo de la sala de usos múltiples, con una superficie de 1.70 x 5.80 mts. Incluye los materiales y mano de obra necesarios. Esta actividad es necesaria para garantizar la seguridad de los 280 niños que realizan sus actividades en esta área. | K74: abril - diciembre | L74: 10000
C75: Protección Civil y Seguridad. | D75: Adquisición, habilitación y mantenimiento de circuito cerrado con cámaras en las salas educativas. | G75: Adquisición de 4 cámaras 4K metálica de 8 pixeles, 1 DVR de 8 canales 4K y 70 mts. de cable para reposición de cámaras existentes en comedor, pasillo del comedor, filtro y lactario. Incluye la remoción de 3 cámaras viejas, así como la instalación de las 4 cámaras nuevas; asimismo conexiones, mano de obra y todo el material necesario para su correcto funcionamiento. Esta obra es necesaria para garantizar la vigilancia y seguridad de los 280 niños. | K75: abril - diciembre | L75: 40000
C76: Protección Civil y Seguridad. | D76: Walkie talkie (4). | G76: Adquisición de un paquete de walkie talkies (con 4 piezas). Esta actividad es para dar cumplimiento a la normativa vigente y garantizar la seguridad de 280 niños. | K76: abril - diciembre | L76: 6000
B77: CENTRO DE ATENCIÓN INFANTIL N° 5 10DDI0008J | C77: Mantenimiento preventivo. | G77: N/A | K77: N/A | L77: 0
C78: Mantenimiento correctivo. | D78: Cambio de losetas en pisos y muros de las salas educativas. | G78: Adquisición de 96 mts2 de piso laminado para sustituir la loseta vinílica en dos grupos de lactantes. Incluye el retiro del piso existente, aplicación del piso nuevo, retiro del escombro, limpieza, mano de obra y todos los materiales necesarios para su correcta instalación. Esta obra es necesaria de realiza a fin de garantizar la seguridad, higiene y salud de los 168 niños y en especial de los que ocupan las dos áreas de lactantes. | K78: abril - diciembre | L78: 65000
C79: Mantenimiento correctivo. | D79: Rehabilitación para área de juego. | G79: Adquisición e instalación de piezas de lámina galvanizada para cubrir el techo de una superficie de 135m2; incluye la revisión y rehabilitación de la estructura metálica existente para adecuarla a fin de colocar el techo nuevo así como el retiro de la mallasombra que actualmente está colocada. Se considera mano de obra, limpieza del área y todos los materiales necesarios para su instalación. Esta actividad es importante de realizar debido a que el techo de malla sombra no cumple con las condiciones de seguridad y protección para los 168 niños del CAI. | K79: abril - diciembre | L79: 163000
C80: Mantenimiento correctivo. | D80: Cambio de tazas de baño para niñas y niños, mingitorio de cerámica, lavabos, herrajes y llaves. | G80: Adquisición e instalación de 3 llaves para cambiarios en las áreas de lactantes, tipo cuello de garza, mezcladoras marca Helvex. Incluye todos los materiales y mano de obra para su correcto funcionamiento. Esta acción es necesaria de realizar porque las llaves existentes no funcionan adecuadamente dificultando su apretura y cierre además de que generan desperdicio de agua; Adquisición e instalación de 3 llaves, tipo cuello de garza, mezcladoras marca Helvex, distribuidas de la siguiente manera: 1 en área de lactario y 2 en el área de cocina. Incluye todos los materiales y mano de obra para su correcto funcionamiento. Esta acción es necesaria de realizar porque las llaves existentes no funcionan adecuadamente dificultando su apretura y cierre además de que generan desperdicio de agua; con esto se beneficiará a 168. | K80: abril - diciembre | L80: 14000
C81: Protección Civil y Seguridad. | D81: Dictamen de seguridad estructural. | G81: Contratación de perito especializado para llevar a cabo la revisión del edificio del CAI, así como para la elaboración y autorización del dictamen de seguridad estructural respectivo. Esta actividad es para dar cumplimiento a la normativa vigente y garantizar la seguridad de 168 niños. | K81: abril - diciembre | L81: 1660
C82: Protección Civil y Seguridad. | D82: Dictamen de gas. | G82: Contratación de perito especializado para llevar a cabo la revisión de las instalaciones de gas del CAI, así como para la elaboración y autorización del dictamen de gas respectivo. Esta actividad es para dar cumplimiento a la normativa vigente y garantizar la seguridad de 168 niños. | K82: abril - diciembre | L82: 1670
C83: Protección Civil y Seguridad. | D83: Dictamen eléctrico. | G83: Contratación de perito especializado para llevar a cabo la revisión de las instalaciones eléctricas del CAI, así como para la elaboración y autorización del dictamen eléctrico respectivo. Esta actividad es para dar cumplimiento a la normativa vigente y garantizar la seguridad de 168 niños. | K83: abril - diciembre | L83: 1670
C84: Protección Civil y Seguridad. | D84: Póliza de seguro para bebés, niñas y niños. | G84: Contratación de Póliza de seguro de responsabilidad civil para guarderías. Esta actividad es para dar cumplimiento a la normativa vigente y garantizar la seguridad de 168 niños. | K84: abril - diciembre | L84: 60000
C85: Protección Civil y Seguridad. | D85: Programa Interno de Protección Civil. | G85: Contratación de Tercer Acreditado Consultor Nivel 3. Esta actividad es para dar cumplimiento a la normativa vigente y garantizar la seguridad de 168 niños. | K85: abril - diciembre | L85: 15000
C86: Protección Civil y Seguridad. | D86: Dictamen de certificación integral por tercer acreditado. | G86: Contratación de Tercer Acreditado. Esta actividad es para dar cumplimiento a la normativa vigente y garantizar la seguridad de 168 niños. | K86: abril - diciembre | L86: 3000
B87: CENTRO DE ATENCIÓN INFANTIL N° 6 10DDI0009I | C87: Mantenimiento preventivo. | D87: Revisión y mantenimiento de bomba hidroneumática. | G87: Revisión y mantenimiento de bomba hidroneumática ubicada en el CAI; la obra es necesaria porque el equipo no a recibido mantenimiento en vairos años. Incluye todos los matertiales y la mano de obra necesarios para su correcto funcionamiento, todo esto en beneficio de 117 niños | K87: abril - diciembre | L87: 12000
C88: Mantenimiento preventivo. | D88: Revisión y mantenimiento de salidas de emergencia y sistemas de seguridad. | G88: Revisión del funcionamiento así como mantenimiento de 2 puertas de salida de emergencia del centro, una ubicada hacia el Blvd. San Antonio la cual al momento de abrir se atora, y la segunda puerta que da hacia la calle San Marcos está caída y desnivelada lo que dificulta su apertura. Incluye todos los materiales y mano de obra necesarios para su correcta instalación y funcionamiento; todo esto en beneficio de 117 niños. | K88: abril - diciembre | L88: 15000
C89: Mantenimiento correctivo. | D89: Reparación de puertas, ventanas y pasamanos. | G89: Revisión de 2 ventanas existentes que se encuentran desniveladas las cuales deben retirarse de sus marcos para repararlas y volverlas a colocar en las mismas áreas. Ambas ventanas tienen medidas de 97 cm de ancho x 70 cm de altura y 4mm de grosor. Incluye resane de la pared, los materiales y mano de obra necesarios para su correcto funcionamiento. Esta obra es necesaria ya que las ventanas presentan dificultad al abrirlas y cerrarlas, y en ocasiones no se pueden cerrar, Adquisicion e Instalacion del vidrio de la puerta abatible ubicada en el área de comedor, de medidas de 2.27 mto. de altura por 0.88 cms. de ancho y 4 mm de grosor, asimismo se requiere la adquisición e instalación de la película antiastillante para este vidrio. Incluye materiales, instalación y mano de obra necesarios para su correcta instalación y funcionamiento. Esta obra es necesaria ya que el vidrio de la puerta se encuentra estrellado, y debido al uso continuo puede generar situaciones de riesgo; Adquisición e instalación de 2 vidrios nuevos para las ventanas de las salas de Preescolar 1 y Preescolar 2, debido a que los vidrios se encuentran estrellados y representan riesgo, por lo que es necesario realizar el cambio; asimismo se requiere la película antiastillante para ambos vidrios. La medida de los vidrios es de 0.63 cm de alto. x 0.90 de ancho y 4 mm de grosor. Incluye material, instalación y mano de obra necesarios para su correcta instalación y funcionamiento, beneficiando con esto a 117 niños. | K89: abril - diciembre | L89: 17000
C91: Mantenimiento correctivo. | D91: Cambio de tazas de baño para niñas y niños, mingitorio de cerámica, lavabos, herrajes y llaves. | G91: Adquisición e Instalación 11 tazas de baño marca Castel Modelo Zeus, de cerámica, color blanco. 6 tazas de baño están ubicadas en los baños de niñas, 4 tazas de baño se ubican en los baños de niños que están en el edificio 3, y 1 taza de baño ubicada en la dirección en el edificio 1 planta baja. Incluye material y mano de obra para su correcto funcionamiento, además de la limpieza del áraea al final de la instalación. Esta obra es necesaria llevarla a cabo ya que los baños están deteriorados y aunque algunos tanques de los baños se han mandado arreglar, no han quedado en buen estado. Adquision e Instalación de 11 llaves con temporizador para lavabo de Push, Marca Fontanery: color cromado; 6 llaves están ubicadas en los baños de los niños del edificio 3, las otras 4 llaves van ubicadas en los lavabos fuera del área de comedor perteneciente al edificio 3, y otra llave va ubicada en el lavabo del baño de dirección del edificio 1 planta baja. Esta obra es necesaria de llevarse a cabo ya que algunas de las llaves gotean porque el push temporizador ya no funciona y otras llaves están flojas debido al uso continuo. Todo esto en beneficio de 117 niños. | K91: abril - diciembre | L91: 105990
C92: Protección Civil y Seguridad. | D92: Dictamen de seguridad estructural. | G92: Contratación de perito especializado para llevar a cabo la revisión del edificio del CAI, así como para la elaboración y autorización del dictamen de seguridad estructural respectivo. Esta actividad es para dar cumplimiento a la normativa vigente y garantizar la seguridad de 117 niños. | K92: abril - diciembre | L92: 1670
C93: Protección Civil y Seguridad. | D93: Dictamen de gas. | G93: Contratación de perito especializado para llevar a cabo la revisión de las instalaciones de gas del CAI, así como para la elaboración y autorización del dictamen de gas respectivo. Esta actividad es para dar cumplimiento a la normativa vigente y garantizar la seguridad de 117 niños. | K93: abril - diciembre | L93: 1670
C94: Protección Civil y Seguridad. | D94: Dictamen eléctrico. | G94: Contratación de perito especializado para llevar a cabo la revisión de las instalaciones eléctricas del CAI, así como para la elaboración y autorización del dictamen eléctrico respectivo. Esta actividad es para dar cumplimiento a la normativa vigente y garantizar la seguridad de 117 niños. | K94: abril - diciembre | L94: 1670
C95: Protección Civil y Seguridad. | D95: Póliza de seguro para bebés, niñas y niños. | G95: Contratación de Póliza de seguro de responsabilidad civil para guarderías. Esta actividad es para dar cumplimiento a la normativa vigente y garantizar la seguridad de 117 niños. | K95: abril - diciembre | L95: 60000
C96: Protección Civil y Seguridad. | D96: Programa Interno de Protección Civil. | G96: Contratación de Tercer Acreditado. Esta actividad es para dar cumplimiento a la normativa vigente y garantizar la seguridad de 117 niños. | K96: abril - diciembre | L96: 15000
C97: Protección Civil y Seguridad. | D97: Dictamen de certificación integral por tercer acreditado. | G97: Contratación de Tercer Acreditado. Esta actividad es para dar cumplimiento a la normativa vigente y garantizar la seguridad de 117 niños. | K97: abril - diciembre | L97: 3000
C98: Protección Civil y Seguridad. | D98: Material retardante de fuego para mobiliario, cortinas y plafones entre otros. | G98: Suministro y aplicación de material retardante de fuego en 14 puertas de madera, 2 libreros, 1 mostrador y 2 muebles del CAI, distribuidos de la siguiente manera: 5 puertas de medidas de 2.46 x 0.92 mts. y 2.27x 0.89 mts. en el área de filtro; 2 puertas de medidas de 2.52 x 1.04 mts. ubicadas en las salas de lactantes 2 y lactantes 3; 3 puertas de medidas de 0.94cm x 100 cm las cuáles dividen las salas de maternal 1, lactantes 2 y lactantes 3; 1 puerta de medidas de 2.50 x 1 mts. que divide la sala de maternal 1 a la de lactantes 3; 4 puertas en el área de dirección con medidas de 2.89 x 0.83 mts, 1.14 x 2.89 mts., 1.23 x2.51 mts. y 0.82cm x 2.46 mts.; 1 librero de 5 puertas y 4 entrepaños así como 1 librero de 4 puertas y 4 entrepaños ubicados en el área de dirección; el mostrador de 1 cajón y 2 entrepaños ubicado en el area de filtro; 1 mueble con 4 cajones y 6 puertas así como 1 muebles con 6 puertas ambos ubicados en el área del banco de leche. Incluye todos los materiales y mano de obra requeridos, para dar cumplimiento a la observación realizada por Protección Civil municipal y beneficiar con esto a 117 niños. | K98: abril - diciembre | L98: 25000
C99: Protección Civil y Seguridad. | D99: Extintores tipo K. | G99: Adquisición de 1 extintor tipo K de 6 lts. para el área de cocina, para dar cumplimiento a la observación realizada por parte de Protección Civil municipal, beneficiando con esto a 117 niños. | K99: abril - diciembre | L99: 8000
C100: Protección Civil y Seguridad. | D100: Mantenimiento o cambio de extintores de CO2. | G100: Adquisición de 4 extintores de CO2 de 4.5 kgs., para ubicarse en diferentes áreas del CAI y dar cumplimiento a la observación realizada por parte de Protección Civil municipal y beneficiar con esto a 117 niños. | K100: abril - diciembre | L100: 35000
C101: Protección Civil y Seguridad. | D101: Adquisición, habilitación y mantenimiento de circuito cerrado con cámaras en las salas educativas. | G101: Revisión y reconfiguración del sistema de cámaras para generar nuevos usuarios y contraseñas, así como mantenimiento del equipo. Incluye mano de obra y los materiales necesarios para su correcto funcionamiento. Esta obra es necesaria debido a que no se cuenta con la contraseña del cerebro de las cámaras y eso impide poder revisarlas en cualquier momento que se requieira y porque es importante garantizar la vigilancia y seguridad de 117 niños. | K101: abril - diciembre | L101: 10000
C102: Protección Civil y Seguridad. | D102: Restitución de material del botiquín que se haya agotado. | G102: Adquisición de material para el botiquín de primeros auxilios: 2 aguas oxigenadas de 250 ml, 1 alcohol en gel 100 ml, 1 anttibenzil 100 ml, 1 jabon quirúrgico 100 ml, 2 vendas de curación (5x5 cms), 2 vendas de curación (10x 5 cms) , 2 vendas de curación (15x5 cms), abatelenguas de madera (25 piezas), 2 jeringas de 1ml, 2 jeringas de 3ml, 2 jeringas de 5ml, 1 compresa caliente desechable, 1 ligadura torniquete, 1 caja de toallitas alcohol pads, 1 pieza de tijera ruda, 1 pieza de tijera botón, 2 cajas de curitas, 1 pieza de lámpara diagnóstico. Esta actividad es necesaria para restituir el material con el que se cuenta en el CAI y que ya tiene fecha de caducidad vencida y con esto beneficiar a 117 niños. | K102: abril - diciembre | L102: 3000
C103: Protección Civil y Seguridad. | D103: Cascos de seguridad (contar con al menos 5.) | G103: Adquisición de 2 cascos de protección, de plástico, con 2mm de grosor y en color verde. Esta actividad es necesaria para dar cumplimiento a la normativa que marca 5 cascos por CAI y con ello beneficiar a 117 niños. | K103: abril - diciembre | L103: 2000
C104: Protección Civil y Seguridad. | D104: Camillas rígidas para primeros auxilios (contar con al menos 3). | G104: Adquisición de 2 camillas rígidas para primeros auxilios, lavables, con medidas de 184 x 0.44 cms, con 3 cinturones. Esta actividad es necesaria ya que en CAI solo se cuenta con 1 camilla y dentro de la norma se solicita contar con minimo 3 para el beneficio de 117 niños. | K104: abril - diciembre | L104: 9000
B105: 1MONTO TOTAL DE ESTE APOYO | L105: =SUM($L$26:$L$104) -> 1950000
B108: CENDI en proceso de regularización con inmueble federalizado.
B109: NOMBRE DEL CENDI y CCT | C109: TIPO DE MANTENIMIENTO | D109: RUBROS DE GASTOS (DE ACUERDO A REGLAS DE OPERACIÓN) | G109: Acción de seguimiento a la meta | K109: PERÍODO DE REALIZACIÓN DE LA META | L109: MONTO ASIGNADO
C110: Mantenimiento preventivo.. | G110: N/A | K110: N/A
C111: Mantenimiento correctivo.. | G111: N/A | K111: N/A
C112: Protección Civil y Seguridad. | G112: N/A | K112: N/A
B113: 2MONTO TOTAL DE ESTE APOYO | L113: =SUM($L$110:$L$112) -> 0

Sheet APOYO 2
A1: Secretaría de Educación Pública
A2: Subsecretaría de Educación Básica
A3: Dirección General de Gestión Escolar y Enfoque Territorial
B5: Programa Anual de Trabajo (PAT) 2023
I7: Fecha de validación
I8: =Inicio!B16 -> 08 | J8: =Inicio!C16 -> Marzo | L8: =Inicio!D16 -> 2023
B9: Nombre de la Entidad Federativa | D9: =Inicio!B12 -> Durango
B11: Monto asignado al PEEI en el Convenio para la operación | E11: =Inicio!B21 -> 87576494.98
B13: APOYO 2. ESTRATEGIA DE VISITAS A HOGARES
B15: DIAGNÓSTICO Y METAS A ALCANZAR
B17: DIAGNÓSTICO DEL APOYO
B18: En el estado de Durango la estrategia Visitas a los Hogares está conformada por 18 agentes educativos que laboran en diversas colonias de la capital del municipio de Durango, las cuales se caracterizan por su alta marginación. Adicionalmente también se cuenta con un agente educativo que brinda el acompañamiento a las familias en el municipio de Vicente Guerrero, contando así con un padrón de 282 familias que participan en la estrategia, con un promedio de 20 familias atendidas por cada agente educativo. Durante el tiempo que ha operado esta modalidad de atención para niñas y niños de 0 a 3 años se ha percibido una creciente participación e interés de las familias por involucrarse en las necesidades de crianza y desarrollo de sus hijos e hijas, así como por el conocimiento de la alimentación perceptiva y las prácticas de crianza saludables, que contribuyen a la formación de vínculos afectivos, seguros y estables entre niños y sus madres, padres y/o cuidadores principales. En este sentido, las acciones pedagógicas que lleva a cabo el agente educativo para fortalecer el acompañamiento a las familias y los niños, son apoyadas con los manuales y guías para padres, con los libros de Mi Primera Biblioteca y con la mochila didáctica. Cabe mencionar que al ser las bibliotecas uno de los materiales que mayor interés han despertado en los niños y las familias, se hace necesario ampliar la cantidad de títulos y el número de bibliotecas asignadas a cada agente, ya que al realizar el préstamo de libros a domicilio se propicia un notable interés en la lectura por parte de las madres y cuidadores como de los niños, situación que también se aplica a los materiales didácticos, los cuales, no omitimos mencionar, en algunas ocasiones no han sido adecuados para el apoyo de las visitas, considerando que algunos materiales representa dificultad para su traslado. Una situación que impacta a la estrategia de Visitas a los Hogares está relacionada directamente con la movilidad que tienen las familias en las colonias debido a la inseguridad en que viven y que puede llegar a generar riesgos también para el agente educativo; esta misma movilidad también hace las familias prioricen la realización de actividades de otra índole y no estén presentes al momento de la visita que realiza el agente. Derivado de la falta de renovación de contratos, por parte del Estado, para 17 agentes educativos, la estrategia de Visitas a los Hogares se vio afectada fuertemente, ya que no se logró sostener la meta establecida de 700 familias, dejando a los niños, niñas y sus familias, quiénes ya formaban parte de este tipo de apoyo desprotegidos de cualquier tipo de atención. Es importante resaltar que estas mismas familias han señalado reiteradamente su interés por continuar siendo parte de la estrategia, sin embargo, esta demanda no ha sido factible ya que no se cuenta con los suficientes agentes que puedan cubrir el total de colonias que han quedado fuera del padrón. Es importante rescatar el compromiso que tienen los agentes educativos por continuar fortaleciendo sus conocimientos en cuanto al desarrollo y necesidades presentadas por los niños y niñas y en las orientaciones a las madres o cuidadores, así como para fortalecer el diseño de sus planeaciones, sin embargo también se advierte la necesidad de que los agentes educativos de esta estrategia cuenten con el apoyo de un equipo técnico pedagógico -asesores, psicólogos, maestros de educación especial y trabajadores sociales-, para por un lado, cubrir las necesidades propias de los agentes educativos y, por otro, atender las necesidades de los niños y de sus padres o cuidadores.
B22: NOTA: En las siguientes celdas, anotar la información solicitada del total de los Agentes Educativos que operan en la entidad.
B24: Visitas a Hogares
C25: RUBROS DE GASTOS (DE ACUERDO A REGLAS DE OPERACIÓN) | G25: Acción de seguimiento a la meta | K25: PERIODO DE REALIZACIÓN DE LA META | L25: MONTO ASIGNADO
B26: Apoyo para Agentes Educativos (Modalidad No Escolarizada) | C26: Apoyo económico para cada agente educativo responsable de implementar la Estrategia de Visitas a Hogares. | G26: Pago mensual del apoyo de traslado a 24 Agentes Educativos del Programa Visitas a los Hogares. | K26: enero - diciembre | L26: 432000
C27: Unidad Didáctica para los agentes educativos responsables de implementar la Estrategia de Visitas a Hogares. | G27: Unidad Didáctica (paquete material didáctico). 1 paquete de material didáctico para cada uno de los 24 agentes educativos. | K27: marzo - diciembre | L27: 48000
B28: MONTO TOTAL DE ESTE APOYO | L28: =SUM(L26:L27) -> 480000
B30: NOTA: Solo en caso de que la Entidad Federativa participe con la incorporación de los Centros de Educación Inicial indígena CEII, registra información en este espacio.
B32: Visitas a Hogares en Educación Inicial Indígena
C33: RUBROS DE GASTOS (DE ACUERDO A REGLAS DE OPERACIÓN) | G33: Acción de seguimiento a la meta | K33: PERIODO DE REALIZACIÓN DE LA META | L33: MONTO ASIGNADO
B34: Apoyo para Agentes Educativos (Modalidad No Escolarizada) | C34: Apoyo económico para cada Agente Educativo responsable de implementar la Estrategia de Visitas a Hogares. | G34: Pago mensual del apoyo de traslado a 15 Agentes Educativos del Programa Visitas a los Hogares Indigenas. | K34: enero . Diciembre | L34: 270000
C35: Unidad Didáctica para los Agentes Educativos responsable de implementar la Estrategia de Visitas a Hogares. | G35: Unidad Didáctica (15 Unidades Didacticas con un costo de $ 12,000.00) | K35: marzo - diciembre | L35: 180000
B36: MONTO TOTAL DE ESTE APOYO | L36: =SUM(L34:L35) -> 450000

Sheet APOYO 3
A1: Secretaría de Educación Pública
A2: Subsecretaría de Educación Básica
A3: Dirección General de Gestión Escolar y Enfoque Territorial
B5: Programa Anual de Trabajo (PAT) 2023
I7: Fecha de validación
I8: =Inicio!B16 -> 08 | J8: =Inicio!C16 -> Marzo | L8: =Inicio!D16 -> 2023
B9: Nombre de la Entidad Federativa | D9: =Inicio!B12 -> Durango
B11: Monto asignado al PEEI en el Convenio para la operación | E11: =Inicio!B21 -> 87576494.98
B13: APOYO 3.ESTABLECIMIENTO Y OPERACIÓN DE LOS CCAPI
B15: DIAGNÓSTICO Y METAS A ALCANZAR
B17: DIAGNÓSTICO DEL APOYO
B18: Actualmente se cuenta con 12 centros comunitarios, 8 de ellos en diferentes municipios del estado, 2 más se encuentran ubicados en la capital y 2 en proceso de apertura los cuales están uno en el municipio de Canatlán y el otro en la capital. En la estrategia, de manera general se atienden a 104 familias diariamente, entre 148 niñas, 148 niños y 7 madres en etapa de gestación; cada centro cuenta con área de lactancia materna, la cual utilizan alrededor de 35 madres de familia. De manera general se otorgan aproximadamente 260 dietas diariamente. En la mayoría de los centros se cumple con el objetivo de atención a 20 familias diariamente, la implementación y orientación de la alimentación perceptiva ha favorecido su desarrollo, así como también sus rutinas de sueño, se trabaja con variedad de materiales que enriquecen los ambientes de aprendizaje, desarrollando la creatividad y la imaginación, involucrando a madres, padres y cuidadores primarios favoreciendo las prácticas de crianza y los vínculos afectivos sanos. Se cuenta con variedad de materiales didácticos para favorecer el óptimo desarrollo de niños y niñas, así como para trabajar en diversos ambientes de aprendizaje, entre dichos materiales se cuenta con: material de ensamble, cuentos, albercas de pelotas, pinturas, gises, títeres, juegos de armar, casitas, juegos de té, teatro, gusano, pizarrón, muñecas, loterías, materiales no estructurados, entre otros. En la mayoría de los municipios se cuenta con el apoyo de las presidencias municipales de manera directa y se logra gestionar las mejorías del centro, en lo referente a infraestructura, proporcionando reparaciones y/o mantenimiento de las instalaciones y los servicios, sin embargo en algunos de los centros no se ha recibido buena y pronta respuesta a las necesidades, es por ello que se dificulta el funcionamiento de los centros con necesidades particulares como, instalación eléctrica no adecuada para la carga requerida necesitando un cambio y ajuste de carga a 220 volts, para uso adecuado de un mini Split y parrillas para cocinar los alimentos; así como agua potable, protecciones, pasamanos en escalera, ya que esto ha provocado dos incidentes, púes no se cuenta con la seguridad requerida. De igual manera se detecta poca asistencia en uno de los centros, el ubicado en Villa Unión, ya que solo reporta la atención de 2 niños lactantes y 4 maternales, lo que pone en foco a dicho centro pues no se está cumpliendo el objetivo mínimo de atención, por lo que es necesario brindar acompañamiento permanente al agente educativo para lograr incrementar la asistencia de familias, programando generar una estrategia de difusión sobre los beneficios del servicio. Con la finalidad de identificar y atender las distintas problemáticas oportunamente es necesario realizar por lo menos 1 visita al mes a cada uno de los centros, ya que de esta manera se logrará acompañar adecuadamente a los agentes educativos responsables de cada centro.
B22: NOTA: En las siguientes celdas, anotar la información solicitada para cada uno de los CCAPI que operan en la entidad.
B24: NOMBRE DEL CCAPI y CCT | C24: RUBROS DE GASTOS (DE ACUERDO A REGLAS DE OPERACIÓN) | G24: Acción de seguimiento a la meta | K24: PERÍODO DE REALIZACIÓN DE LA META | L24: MONTO ASIGNADO
B25: CCAPI N°23 CUENCAME 10PEEI-13-10SPI0001X | C25: Apoyo económico para el Agente Educativo Comunitario. | G25: Pago de 1 Agente Educativo por los 12 meses del Centro Comunitario de Atención a la Primera Infancia. | K25: enero - diciembre | L25: 144000
C26: Servicio de alimentación de niñas y niños que asisten al CCAPI. | G26: Pago de alimentación para 20 niños que asisten diariamente a los CCAPI. De lunes a viernes durante las 44 semanas del año, el costo de $ 40.00 diarios. | K26: marzo - diciembre | L26: 180000
C27: Equipamiento y mobiliario. | G27: Complemento de enseres al Centro Comunitario de Atencion a la Primera Infancia. | K27: marzo - diciembre | L27: 77160
C28: Baúl con materiales didácticos. | G28: Baúl Didáctico (un baúl para Centros Comunitarios de Atención a la Primera Infancia. Con un costo de $ 20,000.00 | K28: marzo - diciembre | L28: 20000
B29: CCAPI N° 24 PARQUE INDUSTRIAL 10-PEEI-14-10SPI0002W | C29: Apoyo económico para el Agente Educativo Comunitario. | G29: Pago de 1 Agente Educativo por los 12 meses del Centros Comunitarios de Atención a la Primera Infancia. | K29: enero - diciembre | L29: 144000
C30: Servicio de alimentación de niñas y niños que asisten al CCAPI. | G30: Pago de alimentación para 20 niños que asisten diariamente a los CCAPI. De lunes a viernes durante las 44 semanas del año, el costo de $ 40.00 diarios. | K30: marzo - diciembre | L30: 180000
C31: Equipamiento y mobiliario. | G31: Complemento de enseres al Centro Comunitario de Atencion a la Primera Infancia | K31: marzo - diciembre | L31: 77160
C32: Baúl con materiales didácticos. | G32: Baúl Didáctico ( un baúl para Centros Comunitarios de Atención a la Primera Infancia. Con un costo de $ 20,000.00 | K32: marzo - diciembre | L32: 20000
B33: CCAPI N° 25 ISABEL ALMANZA 10PEEI-15-10SPI0003V | C33: Apoyo económico para el Agente Educativo Comunitario. | G33: Pago de 1 Agente Educativo por los 12 meses del Centros Comunitarios de Atención a la Primera Infancia. | K33: enero - diciembre | L33: 144000
C34: Servicio de alimentación de niñas y niños que asisten al CCAPI. | G34: Pago de alimentación para 20 niños que asisten diariamente a los un CCAPI. De lunes a viernes durante las 44 semanas del año, el costo de $ 40.00 diarios | K34: marzo - diciembre | L34: 180000
C35: Equipamiento y mobiliario. | G35: Complemento de enseres al Centro Comunitario de Atencion a la Primera Infancia | K35: marzo - diciembre | L35: 77160
C36: Baúl con materiales didácticos. | G36: Baúl Didáctico , ( un baúl para Centros Comunitarios de Atención a la Primera Infancia. Con un costo de $ 20,000.00 | K36: marzo - diciembre | L36: 20000
B37: CCAPI N°26 PUEBLO NUEVO 10PEEI-16-10SPI0004U | C37: Apoyo económico para el Agente Educativo Comunitario. | G37: Pago de 1 Agente Educativo por los 12 meses del Centros Comunitarios de Atención a la Primera Infancia. | K37: enero - diciembre | L37: 144000
C38: Servicio de alimentación de niñas y niños que asisten al CCAPI. | G38: Pago de alimentación para 20 niños que asisten diariamente a los un CCAPI. De lunes a viernes durante las 44 semanas del año, el costo de $ 40.00 diarios | K38: marzo - diciembre | L38: 180000
C39: Equipamiento y mobiliario. | G39: Complemento de enseres al Centro Comunitario de Atencion a la Primera Infancia | K39: marzo - diciembre | L39: 77160
C40: Baúl con materiales didácticos. | G40: Baúl Didáctico , ( un baúl para Centros Comunitarios de Atención a la Primera Infancia. Con un costo de $ 20,000.00 | K40: marzo - diciembre | L40: 20000
B41: CCAPI N° 27 GUADALUPE VICTORIA 10-PEEI-17-10SPI0005T | C41: Apoyo económico para el Agente Educativo Comunitario. | G41: Pago de 1 Agente Educativo por los 12 meses del Centros Comunitarios de Atención a la Primera Infancia. | K41: enero - diciembre | L41: 144000
C42: Servicio de alimentación de niñas y niños que asisten al CCAPI. | G42: Pago de alimentación para 20 niños que asisten diariamente a los un CCAPI. De lunes a viernes durante las 44 semanas del año, el costo de $ 40.00 diarios | K42: marzo - diciembre | L42: 180000
C43: Equipamiento y mobiliario. | G43: Complemento enseres al Centro Comunitario de Atencion a la Primera Infancia | K43: marzo - diciembre | L43: 77160
C44: Baúl con materiales didácticos. | G44: Baúl Didáctico , ( un baúl para Centros Comunitarios de Atención a la Primera Infancia. Con un costo de $ 20,000.00 | K44: marzo - diciembre | L44: 20000
B45: CCAPI N° 28 PEÑON BLANCO 10-PEEI-18-10SPI0006S | C45: Apoyo económico para el Agente Educativo Comunitario. | G45: Pago de 1 Agente Educativo por los 12 meses del Centros Comunitarios de Atención a la Primera Infancia. | K45: enero - diciembre | L45: 144000
C46: Servicio de alimentación de niñas y niños que asisten al CCAPI. | G46: Pago de alimentación para 20 niños que asisten diariamente a los un CCAPI. De lunes a viernes durante las 44 semanas del año, el costo de $ 40.00 diarios | K46: marzo - diciembre | L46: 180000
C47: Equipamiento y mobiliario. | G47: Complemento enseres al Centro Comunitario de Atencion a la Primera Infancia | K47: marzo - diciembre | L47: 77160
C48: Baúl con materiales didácticos. | G48: Baúl Didáctico , ( un baúl para Centros Comunitarios de Atención a la Primera Infancia. Con un costo de $ 20,000.00 | K48: marzo - diciembre | L48: 20000
B49: CCAPI N° 29 J. AGUSTIN CASTRO 10-PEEI-19-10SPI0007R | C49: Apoyo económico para el Agente Educativo Comunitario. | G49: Pago de 1 Agente Educativo por los 12 meses del Centros Comunitarios de Atención a la Primera Infancia. | K49: enero - diciembre | L49: 144000
C50: Servicio de alimentación de niñas y niños que asisten al CCAPI. | G50: Pago de alimentación para 20 niños que asisten diariamente a los un CCAPI. De lunes a viernes durante las 44 semanas del año, el costo de $ 40.00 diarios | K50: marzo - diciembre | L50: 180000
C51: Equipamiento y mobiliario. | G51: Complemento enseres al Centro Comunitario de Atencion a la Primera Infancia | K51: marzo - diciembre | L51: 77160
C52: Baúl con materiales didácticos. | G52: Baúl Didáctico , ( un baúl para Centros Comunitarios de Atención a la Primera Infancia. Con un costo de $ 20,000.00 | K52: marzo - diciembre | L52: 20000
B53: CCAPI N° 30 TAMAZULA 10-PEEI-20-10SPI0008Q | C53: Apoyo económico para el Agente Educativo Comunitario. | G53: Pago de 1 Agente Educativo por los 12 meses del Centros Comunitarios de Atención a la Primera Infancia. | K53: enero - diciembre | L53: 144000
C54: Servicio de alimentación de niñas y niños que asisten al CCAPI. | G54: Pago de alimentación para 20 niños que asisten diariamente a los un CCAPI. De lunes a viernes durante las 44 semanas del año, el costo de $ 40.00 diarios | K54: marzo - diciembre | L54: 180000
C55: Equipamiento y mobiliario. | G55: Complemento enseres al Centro Comunitario de Atencion a la Primera Infancia | K55: marzo - diciembre | L55: 77160
C56: Baúl con materiales didácticos. | G56: Baúl Didáctico , ( un baúl para Centros Comunitarios de Atención a la Primera Infancia. Con un costo de $ 20,000.00 | K56: marzo - diciembre | L56: 20000
B57: CCAPI N° 31 VICENTE GUERRERO N 10-PEEI-21-10SPI009P | C57: Apoyo económico para el Agente Educativo Comunitario. | G57: Pago de 1 Agente Educativo por los 12 meses del Centros Comunitarios de Atención a la Primera Infancia. | K57: enero - diciembre | L57: 144000
C58: Servicio de alimentación de niñas y niños que asisten al CCAPI. | G58: Pago de alimentación para 20 niños que asisten diariamente a los un CCAPI. De lunes a viernes durante las 44 semanas del año, el costo de $ 40.00 diarios | K58: marzo - diciembre | L58: 180000
C59: Equipamiento y mobiliario. | G59: Complemento enseres al Centro Comunitario de Atencion a la Primera Infancia | K59: marzo - diciembre | L59: 77160
C60: Baúl con materiales didácticos. | G60: Baúl Didáctico , ( un baúl para Centros Comunitarios de Atención a la Primera Infancia. Con un costo de $ 20,000.00 | K60: marzo - diciembre | L60: 20000
B61: CCAPI N° 32 VILLA UNION 10-PEEI-22-10SPI0010E | C61: Apoyo económico para el Agente Educativo Comunitario. | G61: Pago de 1 Agente Educativo por los 12 meses del Centros Comunitarios de Atención a la Primera Infancia. | K61: enero - diciembre | L61: 144000
C62: Servicio de alimentación de niñas y niños que asisten al CCAPI. | G62: Pago de alimentación para 20 niños que asisten diariamente a los un CCAPI. De lunes a viernes durante las 44 semanas del año, el costo de $ 40.00 diarios | K62: marzo - diciembre | L62: 180000
C63: Equipamiento y mobiliario. | G63: Complemento enseres al Centro Comunitario de Atencion a la Primera Infancia | K63: marzo - diciembre | L63: 77160
C64: Baúl con materiales didácticos. | G64: Baúl Didáctico , ( un baúl para Centros Comunitarios de Atención a la Primera Infancia. Con un costo de $ 20,000.00 | K64: marzo - diciembre | L64: 20000
B65: CCAPI DGO NUEVA CREACIÓN | C65: Apoyo económico para el Agente Educativo Comunitario. | G65: Pago de 1 Agente Educativo por los 12 meses del Centros Comunitarios de Atención a la Primera Infancia. | K65: enero - diciembre | L65: 144000
C66: Servicio de alimentación de niñas y niños que asisten al CCAPI. | G66: Pago de alimentación para 20 niños que asisten diariamente a los un CCAPI. De lunes a viernes durante las 52 semanas del año, el costo de $ 40.00 diarios | K66: marzo - diciembre | L66: 208000
C67: Equipamiento y mobiliario. | G67: Equipamiento al Centro Comunitario de Atencion a la Primera Infancia | K67: marzo - diciembre | L67: 200000
C68: Baúl con materiales didácticos. | G68: Baúl Didáctico , ( un baúl para Centros Comunitarios de Atención a la Primera Infancia. Con un costo de $ 20,000.00 | K68: marzo - diciembre | L68: 20000
B69: CCAPI CANATLAN NUEVA CREACIÓN | C69: Apoyo económico para el Agente Educativo Comunitario. | G69: Pago de 1 Agente Educativo por los 12 meses del Centros Comunitarios de Atención a la Primera Infancia. | K69: enero - diciembre | L69: 144000
C70: Servicio de alimentación de niñas y niños que asisten al CCAPI. | G70: Pago de alimentación para 20 niños que asisten diariamente a los un CCAPI. De lunes a viernes durante las 52 semanas del año, el costo de $ 40.00 diarios | K70: marzo - diciembre | L70: 208000
C71: Equipamiento y mobiliario. | G71: Equipamiento al Centro Comunitario de Atencion a la Primera Infancia | K71: marzo - diciembre | L71: 200000
C72: Baúl con materiales didácticos. | G72: Baúl Didáctico , ( un baúl para Centros Comunitarios de Atención a la Primera Infancia. Con un costo de $ 20,000.00 | K72: marzo - diciembre | L72: 20000
B73: MONTO TOTAL DE ESTE APOYO | L73: =SUM($L$25:$L$72) -> 5355600

Sheet APOYO 4
A1: Secretaría de Educación Pública
A2: Subsecretaría de Educación Básica
A3: Dirección General de Gestión Escolar y Enfoque Territorial
B5: Programa Anual de Trabajo (PAT) 2023
I7: Fecha de validación
I8: =Inicio!B16 -> 08 | J8: =Inicio!C16 -> Marzo | L8: =Inicio!D16 -> 2023
B9: Nombre de la Entidad Federativa | D9: =Inicio!B12 -> Durango
B11: Monto asignado al PEEI en el Convenio para la operación | E11: =Inicio!B21 -> 87576494.98
B13: APOYO 4. CAPACITACIÓN A AGENTES EDUCATIVOS FEDERALIZADOS Y COMUNITARIOS
B15: DIAGNÓSTICO Y METAS A ALCANZAR
B17: DIAGNÓSTICO DEL APOYO
B18: La Coordinación de Educación inicial ha llevado a cabo un amplio proceso de capacitación a través de los recursos que se han otorgado al estado de Durango por parte del PEEI, dicha capacitación ha sido muy valorada por los agentes educativos de la modalidad escolarizada y no escolarizada, lo que les ha permitido contar con elementos técnico pedagógicos para la atención de los niños desde 0 a 3 años de edad, a excepción de los CENDI en proceso de regularización cuya participación en este proceso ha sido muy escasa a pesar de que siempre se les ha convocado. El avance ha sido muy significativo, sobre todo en el dominio y fundamentación del Programa Un Buen Comienzo, sin embargo, en la detección en las necesidades de formación, por parte de la Coordinación se requiere fortalecer las competencias profesionales en el nuevo Plan de Estudios 2022, así como sus Programas Sintéticos y en el acuerdo sobre la Política de Educación Inicial y su implementación. Además, las necesidades de capacitación manifestadas por los agentes educativos de ambas modalidades, considera es necesario retomar temas cómo el desarrollo psíquico del niño, la autorregulación, control de esfínteres y la planeación de ambientes de aprendizaje, también se requiere orientación para elaborar estrategias para impulsar la lactancia materna, el proceso de la ablactación y el manejo adecuado de alimentos, así como la elaboración de menús sobre todo en los CCAPI. La profesionalización de los agentes educativos se plantea de manera diferenciada para ambas modalidades incluyendo a los de la región indígena que este año se incorporan al PEEI, a través de diplomados con temáticas significativas para los agentes educativos, la propuesta para el ciclo 2023.
B22: CONCEPTO | C22: RUBROS DE GASTOS (DE ACUERDO A REGLAS DE OPERACIÓN) | G22: Acción de seguimiento a la meta | K22: PERÍODO DE REALIZACIÓN DE LA META | L22: MONTO ASIGNADO
B23: Desarrollo de capacitación a los Agentes Educativos Federalizados y Comunitarios | C23: Actualización profesional con énfasis en el nuevo Plan y Programa de estudio de Educación Inicial para los Agentes Educativos. | G23: Para agentes educativas de modalidad escolarizada (Docentes, Equipo Técnico y Directivo) se proponen los siguientes Diplomados: "Los vinculos de los campos formativos en educación incial y el desarrollo integral". Destinado a 72 docentes e integrantes de ET "Ejes articuladores, objetivos y principios rectores un cambio de paradigma en la educación y cuidado de niñas y niños de cero a tres años". , Destinado a 72 Agentes Educativos. Para agentes de la modalidad No escolarizada se plantean los diplomados: "Inclusión e interculturalidad, la mirada desde la educación inicial". Para 32 agentes educativos de visitas a hogares incluidos los de la región indigena Programa de formación para CCAPI para 14 agentes educativos. | K23: junio - diciembre | L23: 185600
C24: Plataformas tecnológicas para capacitación virtual. | G24: Plataformas Tecnológicas para capacitación virtual, se realizara la contratacion de 6 licencias de ZOOM para llevar a cabo la capacitaciones de 600 agentes educativos | K24: junio - diciembre | L24: 70000
C25: Estrategia de Capacitación Estatal. | G25: Tres conferencias dirigidas a agentes de Educación Incial (500 participantes) de los servicios CAI federalizados, estatales, particulares, del IMSS, ISSSTE, STEUJED, CENDI en proceso de regularización, Estrategia de Visita a Hogares incluyendo a los de la región Indigena y CCAPI. sobre: la Primera conferencia sobre: Desarrollo Psiquico del niño: apegos, vinculo, autorregulación, mordidas, control de esfinteres. La segunda conferencia sobre alimentación perceptiva: Lactancia materna, ablactación, menús, vinculo, manejo adecuado de alimentos. La tercera conferencia sobre la observación y el registro en la planeación | K25: septiembre - diciembre | L25: 130000
B26: MONTO TOTAL DE ESTE APOYO | L26: =SUM(L23:L25) -> 385600

Sheet APOYO 5
A1: Secretaría de Educación Pública
A2: Subsecretaría de Educación Básica
A3: Dirección General de Gestión Escolar y Enfoque Territorial
B5: Programa Anual de Trabajo (PAT) 2023
I7: Fecha de validación
I8: =Inicio!B16 -> 08 | J8: =Inicio!C16 -> Marzo | L8: =Inicio!D16 -> 2023
B9: Nombre de la Entidad Federativa | D9: =Inicio!B12 -> Durango
B11: Monto asignado al PEEI en el Convenio para la operación | E11: =Inicio!B21 -> 87576494.98
B13: APOYO 5. CENDI EN PROCESO DE REGULARIZACIÓN CON APOYO VOLUNTARIO
B15: DIAGNÓSTICO Y METAS A ALCANZAR
B17: DIAGNÓSTICO DEL APOYO
B18: Objetivo Específico APOYO 5 5. Apoyar a los CENDI en proceso de regularización con apoyo voluntario, con el pago al personal voluntario, los servicios básicos e insumos necesarios para la alimentación. En el año 2019 se recibe recurso económico para los denominados CADI ahora nombrados en el Programa de Expansión de la Educación Inicial como “CENDI en Proceso de Regularización” destinado para el pago de alimentación, gastos de operación (exceptuando renta), Asesores externos especializados (pago de apoyo a voluntarios). A partir del año 2021 y durante 2022, se ejercieron recursos para los mismos rubros para los CENDI en Proceso de Regularización ampliando la cobertura en lo que corresponde al Apoyo 1. 1) Mantenimiento Correctivo/Acondicionamiento de espacios. 2) Garantizar la seguridad de los inmuebles con base en los dictámenes de Protección Civil. 3) Seguros de responsabilidad civil. Los 13 CENDI en proceso de regularización con clave SDI en el Estado y que recibieron el apoyo correspondiente a: Apoyo 5, alimentación, apoyo a voluntarios y servicios básicos se ubican de la siguiente manera: NOMBRE DEL CENTRO ESCOLAR DOMICILIO Dr. Isauro Venzor T. M Tlatelolco s/n Col. Lucio Cabañas. C.P 34140. Durango, Dgo. Dr. Isauro Venzor T. V Tlatelolco s/n Col. Lucio Cabañas. C.P 34140. Durango, Dgo. Francisco Villa Av. Francisco Villa s/n Col. Francisco Villa. C.P 34130 Durango, Dgo. Emiliano Zapata Tierra y Libertad No. 130 Col. Emiliano Zapata C.P. 34230 Durango, Dgo. Tierra y Libertad Av. 3 de agosto s/n esq. Con 20 de noviembre Col. Tierra y Libertad C.P 34127 Durango, Dgo. Paulo Freire Chiapas 408 Col. Morga C.P. 34010 Durango, Dgo. Guadalupe Patoni Aquiles Serdán No. 603 Zona Centro C.P. 34000 Durango, Dgo. Canatlán Abasolo 702 sur Zona Centro C.P. 34450 Canatlán, Dgo. Margarita Gómez Palacio Gómez Farías s/n Barrio el Hormiguero C.P. 34700 Cd. Guadalupe Victoria, Dgo. Vicente Guerrero Alfredo Salinas No. 137 Zona Centro C.P. 34800 Vicente Guerreo, Dgo Nombre de Dios Alcatraz No. 211 Col. Renacimiento C.P 34840 Nombre de Dios, Dgo Maestro Lucio Cabañas Mina No. 1503 Col. Las Rosas C.P 35090 Gómez Palacio, Dgo Aleida March Aquiles Serdán No. 950 Col. La Lomita Mayagoitia C.P. 35158 Cd. Lerdo, Dgo. La información sobre las necesidades en cuanto al apoyo 5 se recaba a través de diversos instrumentos administrativos elaborados por las directoras de los Centros revisados y autorizados por la Directora General del Sistema. Apoyo a voluntarios: Relación de personal Requisición Estadísticas de personal y alumnos Mensual Alimentación: Solicitud Requisición Menús Facturas Evidencias Mensual Servicios (Gas): Solicitud Requisición Facturas Mensual Afortunadamente no se tienen dificultades para conocer quiénes reciben los apoyos puesto que son acciones que se documentan debidamente y son revisados y supervisados por las diferentes instancias administrativas de la Secretaría de Educación en el Estado y la propia Dirección General de los CENDI en proceso de regularización. El seguimiento de las acciones del Apoyo 5 se lleva a cabo de manera documental, mediante la cual se verifica el desarrollo de las acciones programadas en el PAT, a través de diversos instrumentos como: recibos, actas de entrega-recepción y evidencias fotográficas. En relación al apoyo 5, la Coordinación de Educación Inicial no realiza acompañamiento pedagógico, dichas acciones son realizadas por la propia estructura organizacional de los CENDI en proceso de regularización y coordinada por su Dirección General. La autoridad educativa local ha desempeñado acciones fundamentales tendientes al fortalecimiento de los procesos de regularización de los CENDI, se han aplicado los procedimientos normativos en el ejercicio y operación del recurso con el propósito de garantizar las mejores condiciones en beneficio de las niñas, niños y la comunidad educativa. La inversión correspondiente al Apoyo 5 significa un elemento valioso para el proceso de regularización de los Centros. Es necesario fomentar la realización de la gestión y ejercicio del recurso sustentado en una mejor comunicación entre la Autoridad Educativa Local y la Dirección General de los CENDI en proceso de regularización con el propósito de: - Mejorar los procesos administrativos y de gestión del recurso - Implementar mecanismos de seguimiento y evaluación - Fortalecer los mecanismos de transparencia en el ejercicio del recurso
B24: NOTA: Anotar en las siguientes celdas, la información solicitada para cada uno de los CENDI que operan en la entidad.
B26: NOMBRE DEL CENDI y CCT | C26: RUBROS DE GASTOS (DE ACUERDO A REGLAS DE OPERACIÓN) | G26: Acción de seguimiento a la meta | K26: PERÍODO DE REALIZACIÓN DE LA META | L26: MONTO ASIGNADO
B27: ISAURO VENZOR T.M 10SDI0001S | C27: Apoyo a las personas que brindan acciones voluntarias para la atención de niñas y niños matriculados | G27: PAGO QUINCENAL A TRAVES DE TRANSFERENCIA ELECTRONICA A 85 AGENTES VOLUNTARIOS QUE ATIENDEN A LAS NIÑAS Y NIÑOS DEL CENDI EN PROCESO DE REGULARIZACIÓN | K27: enero - diciembre | L27: 6163243.481
C28: Pago para otorgar el servicio de alimentación de las niñas y los niños matriculados | G28: BRINDAR ALIMENTACIÓN A 577 NIÑAS Y NIÑOS INSCRITOS. DE ACUERDO A LOS DATOS OBTENIDOS EN LA ESTADISTICA 911 DE INICIO DE CURSOS 2022-2023 (175 dias) | K28: abril - diciembre | L28: 4039000
C29: Pago de servicios básicos (luz, agua, gas) | G29: PAGO DE INSUMOS BASICOS, AGUA ENERGIA ELECTRICA Y GAS, EN EL CENDI EN PROCESO DE REGULARIZACIÓN. | K29: enero - diciembre | L29: 400000
B30: ISAURO VENZOR T.V 10SDI0002R | C30: Apoyo a las personas que brindan acciones voluntarias para la atención de niñas y niños matriculados | G30: PAGO QUINCENAL A TRAVES DE TRANSFERENCIA ELECTRONICA A 52 AGENTES VOLUNTARIOS QUE ATIENDEN A LAS NIÑAS Y NIÑOS DEL CENDI EN PROCESO DE REGULARIZACIÓN | K30: enero - diciembre | L30: 3833164.871
C31: Pago para otorgar el servicio de alimentación de las niñas y los niños matriculados | G31: BRINDAR ALIMENTACIÓN A 182 NIÑAS Y NIÑOS INSCRITOS. DE ACUERDO A LOS DATOS OBTENIDOS EN LA ESTADISTICA 911 DE INICIO DE CURSOS 2022-2023 (175 dias) | K31: abril - diciembre | L31: 1274000
C32: Pago de servicios básicos (luz, agua, gas) | G32: PAGO DE INSUMOS BASICOS, AGUA ENERGIA ELECTRICA Y GAS, EN EL CENDI EN PROCESO DE REGULARIZACIÓN. | K32: enero - diciembre | L32: 400000
B33: FRANCISCO VILLA 10SDI0003Q | C33: Apoyo a las personas que brindan acciones voluntarias para la atención de niñas y niños matriculados | G33: PAGO QUINCENAL A TRAVES DE TRANSFERENCIA ELECTRONICA A 90 AGENTES VOLUNTARIOS QUE ATIENDEN A LAS NIÑAS Y NIÑOS DEL CENDI EN PROCESO DE REGULARIZACIÓN | K33: enero - diciembre | L33: 6663443.04
C34: Pago para otorgar el servicio de alimentación de las niñas y los niños matriculados | G34: BRINDAR ALIMENTACIÓN A 436 NIÑAS Y NIÑOS INSCRITOS. DE ACUERDO A LOS DATOS OBTENIDOS EN LA ESTADISTICA 911 DE INICIO DE CURSOS 2022-2023 (175 dias) | K34: abril - diciembre | L34: 3052000
C35: Pago de servicios básicos (luz, agua, gas) | G35: PAGO DE INSUMOS BASICOS, AGUA ENERGIA ELECTRICA Y GAS, EN EL CENDI EN PROCESO DE REGULARIZACIÓN. | K35: enero - diciembre | L35: 400000
B36: EMILIANO ZAPATA 10SDI0004P | C36: Apoyo a las personas que brindan acciones voluntarias para la atención de niñas y niños matriculados | G36: PAGO QUINCENAL A TRAVES DE TRANSFERENCIA ELECTRONICA A 87 AGENTES VOLUNTARIOS QUE ATIENDEN A LAS NIÑAS Y NIÑOS DEL CENDI EN PROCESO DE REGULARIZACIÓN | K36: enero - diciembre | L36: 6765937.041
C37: Pago para otorgar el servicio de alimentación de las niñas y los niños matriculados | G37: BRINDAR ALIMENTACIÓN A 606 NIÑAS Y NIÑOS INSCRITOS. DE ACUERDO A LOS DATOS OBTENIDOS EN LA ESTADISTICA 911 DE INICIO DE CURSOS 2022-2023 (175 dias) | K37: abril - diciembre | L37: 4242000
C38: Pago de servicios básicos (luz, agua, gas) | G38: PAGO DE INSUMOS BASICOS, AGUA ENERGIA ELECTRICA Y GAS, EN EL CENDI EN PROCESO DE REGULARIZACIÓN. | K38: enero - diciembre | L38: 400000
B39: TIERRA Y LIBERTAD 10SDI0005O | C39: Apoyo a las personas que brindan acciones voluntarias para la atención de niñas y niños matriculados | G39: PAGO QUINCENAL A TRAVES DE TRANSFERENCIA ELECTRONICA A 34 AGENTES VOLUNTARIOS QUE ATIENDEN A LAS NIÑAS Y NIÑOS DEL CENDI EN PROCESO DE REGULARIZACIÓN | K39: enero - diciembre | L39: 2668937.631
C40: Pago para otorgar el servicio de alimentación de las niñas y los niños matriculados | G40: BRINDAR ALIMENTACIÓN A 141 NIÑAS Y NIÑOS INSCRITOS. DE ACUERDO A LOS DATOS OBTENIDOS EN LA ESTADISTICA 911 DE INICIO DE CURSOS 2022-2023 (175 dias) | K40: abril - diciembre | L40: 987000
C41: Pago de servicios básicos (luz, agua, gas) | G41: PAGO DE INSUMOS BASICOS, AGUA ENERGIA ELECTRICA Y GAS, EN EL CENDI EN PROCESO DE REGULARIZACIÓN. | K41: enero - diciembre | L41: 400000
B42: PAULO FREIRE 10SDI0006N | C42: Apoyo a las personas que brindan acciones voluntarias para la atención de niñas y niños matriculados | G42: PAGO QUINCENAL A TRAVES DE TRANSFERENCIA ELECTRONICA A 31 AGENTES VOLUNTARIOS QUE ATIENDEN A LAS NIÑAS Y NIÑOS DEL CENDI EN PROCESO DE REGULARIZACIÓN | K42: enero - diciembre | L42: 2559921.471
C43: Pago para otorgar el servicio de alimentación de las niñas y los niños matriculados | G43: BRINDAR ALIMENTACIÓN A 157 NIÑAS Y NIÑOS INSCRITOS. DE ACUERDO A LOS DATOS OBTENIDOS EN LA ESTADISTICA 911 DE INICIO DE CURSOS 2022-2023 (175 dias) | K43: abril - diciembre | L43: 1099000
C44: Pago de servicios básicos (luz, agua, gas) | G44: PAGO DE INSUMOS BASICOS, AGUA ENERGIA ELECTRICA Y GAS, EN EL CENDI EN PROCESO DE REGULARIZACIÓN. | K44: enero - diciembre | L44: 400000
B45: GUADALUPE PATONI RUEDA 10SDI0007M | C45: Apoyo a las personas que brindan acciones voluntarias para la atención de niñas y niños matriculados | G45: PAGO QUINCENAL A TRAVES DE TRANSFERENCIA ELECTRONICA A 41 AGENTES VOLUNTARIOS QUE ATIENDEN A LAS NIÑAS Y NIÑOS DEL CENDI EN PROCESO DE REGULARIZACIÓN | K45: enero - diciembre | L45: 3926727.431
C46: Pago para otorgar el servicio de alimentación de las niñas y los niños matriculados | G46: BRINDAR ALIMENTACIÓN A 231 NIÑAS Y NIÑOS INSCRITOS. DE ACUERDO A LOS DATOS OBTENIDOS EN LA ESTADISTICA 911 DE INICIO DE CURSOS 2022-2023 (175 dias) | K46: abril - diciembre | L46: 1617000
C47: Pago de servicios básicos (luz, agua, gas) | G47: PAGO DE INSUMOS BASICOS, AGUA ENERGIA ELECTRICA Y GAS, EN EL CENDI EN PROCESO DE REGULARIZACIÓN. | K47: enero - diciembre | L47: 400000
B48: MARGARITA GOMEZ PALACIO 10SDI0008L | C48: Apoyo a las personas que brindan acciones voluntarias para la atención de niñas y niños matriculados | G48: PAGO QUINCENAL A TRAVES DE TRANSFERENCIA ELECTRONICA A 43 AGENTES VOLUNTARIOS QUE ATIENDEN A LAS NIÑAS Y NIÑOS DEL CENDI EN PROCESO DE REGULARIZACIÓN | K48: enero - diciembre | L48: 3404531.841
C49: Pago para otorgar el servicio de alimentación de las niñas y los niños matriculados | G49: BRINDAR ALIMENTACIÓN A 276 NIÑAS Y NIÑOS INSCRITOS. DE ACUERDO A LOS DATOS OBTENIDOS EN LA ESTADISTICA 911 DE INICIO DE CURSOS 2022-2023 (175 dias) | K49: abril - diciembre | L49: 1932000
C50: Pago de servicios básicos (luz, agua, gas) | G50: PAGO DE INSUMOS BASICOS, AGUA ENERGIA ELECTRICA Y GAS, EN EL CENDI EN PROCESO DE REGULARIZACIÓN. | K50: enero - diciembre | L50: 400000
B51: MAESTRO LUCIO CABAÑAS 10SDI0009K | C51: Apoyo a las personas que brindan acciones voluntarias para la atención de niñas y niños matriculados | G51: PAGO QUINCENAL A TRAVES DE TRANSFERENCIA ELECTRONICA A 56 AGENTES VOLUNTARIOS QUE ATIENDEN A LAS NIÑAS Y NIÑOS DEL CENDI EN PROCESO DE REGULARIZACIÓN | K51: enero - diciembre | L51: 3778946.371
C52: Pago para otorgar el servicio de alimentación de las niñas y los niños matriculados | G52: BRINDAR ALIMENTACIÓN A 284 NIÑAS Y NIÑOS INSCRITOS. DE ACUERDO A LOS DATOS OBTENIDOS EN LA ESTADISTICA 911 DE INICIO DE CURSOS 2022-2023 (175 dias) | K52: abril - diciembre | L52: 1988000
C53: Pago de servicios básicos (luz, agua, gas) | G53: PAGO DE INSUMOS BASICOS, AGUA ENERGIA ELECTRICA Y GAS, EN EL CENDI EN PROCESO DE REGULARIZACIÓN. | K53: enero - diciembre | L53: 400000
B54: VICENTE GUERRERO 10SDI0010Z | C54: Apoyo a las personas que brindan acciones voluntarias para la atención de niñas y niños matriculados | G54: PAGO QUINCENAL A TRAVES DE TRANSFERENCIA ELECTRONICA A 28 AGENTES VOLUNTARIOS QUE ATIENDEN A LAS NIÑAS Y NIÑOS DEL CENDI EN PROCESO DE REGULARIZACIÓN | K54: enero - diciembre | L54: 2036305.361
C55: Pago para otorgar el servicio de alimentación de las niñas y los niños matriculados | G55: BRINDAR ALIMENTACIÓN A 132 NIÑAS Y NIÑOS INSCRITOS. DE ACUERDO A LOS DATOS OBTENIDOS EN LA ESTADISTICA 911 DE INICIO DE CURSOS 2022-2023 (175 dias) | K55: abril - diciembre | L55: 924000
C56: Pago de servicios básicos (luz, agua, gas) | G56: PAGO DE INSUMOS BASICOS, AGUA ENERGIA ELECTRICA Y GAS, EN EL CENDI EN PROCESO DE REGULARIZACIÓN. | K56: enero - diciembre | L56: 400000
B57: NOMBRE DE DIOS 10SDI0011Z | C57: Apoyo a las personas que brindan acciones voluntarias para la atención de niñas y niños matriculados | G57: PAGO QUINCENAL A TRAVES DE TRANSFERENCIA ELECTRONICA A 26 AGENTES VOLUNTARIOS QUE ATIENDEN A LAS NIÑAS Y NIÑOS DEL CENDI EN PROCESO DE REGULARIZACIÓN | K57: enero - diciembre | L57: 2205573.071
C58: Pago para otorgar el servicio de alimentación de las niñas y los niños matriculados | G58: BRINDAR ALIMENTACIÓN A 109 NIÑAS Y NIÑOS INSCRITOS. DE ACUERDO A LOS DATOS OBTENIDOS EN LA ESTADISTICA 911 DE INICIO DE CURSOS 2022-2023 (175 dias) | K58: abril - diciembre | L58: 763000
C59: Pago de servicios básicos (luz, agua, gas) | G59: PAGO DE INSUMOS BASICOS, AGUA ENERGIA ELECTRICA Y GAS, EN EL CENDI EN PROCESO DE REGULARIZACIÓN. | K59: enero - diciembre | L59: 400000
B60: CANATLAN 10SDI0011Z | C60: Apoyo a las personas que brindan acciones voluntarias para la atención de niñas y niños matriculados | G60: PAGO QUINCENAL A TRAVES DE TRANSFERENCIA ELECTRONICA A 33 AGENTES VOLUNTARIOS QUE ATIENDEN A LAS NIÑAS Y NIÑOS DEL CENDI EN PROCESO DE REGULARIZACIÓN | K60: enero - diciembre | L60: 2597287.6
C61: Pago para otorgar el servicio de alimentación de las niñas y los niños matriculados | G61: BRINDAR ALIMENTACIÓN A 112 NIÑAS Y NIÑOS INSCRITOS. DE ACUERDO A LOS DATOS OBTENIDOS EN LA ESTADISTICA 911 DE INICIO DE CURSOS 2022-2023 (175 dias) | K61: abril - diciembre | L61: 784000
C62: Pago de servicios básicos (luz, agua, gas) | G62: PAGO DE INSUMOS BASICOS, AGUA ENERGIA ELECTRICA Y GAS, EN EL CENDI EN PROCESO DE REGULARIZACIÓN. | K62: enero - diciembre | L62: 400000
B63: ALEIDA MARCH 10SDI0013X | C63: Apoyo a las personas que brindan acciones voluntarias para la atención de niñas y niños matriculados | G63: PAGO QUINCENAL A TRAVES DE TRANSFERENCIA ELECTRONICA A 22 AGENTES VOLUNTARIOS QUE ATIENDEN A LAS NIÑAS Y NIÑOS DEL CENDI EN PROCESO DE REGULARIZACIÓN | K63: enero - diciembre | L63: 1752753.79
C64: Pago para otorgar el servicio de alimentación de las niñas y los niños matriculados | G64: BRINDAR ALIMENTACIÓN A 96 NIÑAS Y NIÑOS INSCRITOS. DE ACUERDO A LOS DATOS OBTENIDOS EN LA ESTADISTICA 911 DE INICIO DE CURSOS 2022-2023 (175 dias) | K64: abril - diciembre | L64: 672000
C65: Pago de servicios básicos (luz, agua, gas) | G65: PAGO DE INSUMOS BASICOS, AGUA ENERGIA ELECTRICA Y GAS, EN EL CENDI EN PROCESO DE REGULARIZACIÓN.+G56:J65G64G57:J65G54:J65G52:J65G50:J65G64G57:J65G48:G36:J65 | K65: enero - diciembre | L65: 400000
B66: MONTO TOTAL DE ESTE APOYO | L66: =SUM($L$27:$L$65) -> 76929773

Sheet APOYO 6
A1: Secretaría de Educación Pública
A2: Subsecretaría de Educación Básica
A3: Dirección General de Gestión Escolar y Enfoque Territorial
B5: Programa Anual de Trabajo (PAT) 2023
I7: Fecha de validación
I8: =Inicio!B16 -> 08 | J8: =Inicio!C16 -> Marzo | L8: =Inicio!D16 -> 2023
B9: Nombre de la Entidad Federativa | D9: =Inicio!B12 -> Durango
B11: Monto asignado al PEEI en el Convenio para la operación | E11: =Inicio!B21 -> 87576494.98
B13: APOYO 6. DIFUSIÓN DE LOS OBJETIVOS Y PRINCIPIOS RECTORES DE LA EDUCACIÓN INICIAL
B15: DIAGNÓSTICO Y METAS A ALCANZAR
B17: DIAGNÓSTICO DEL APOYO
B18: La implantación de la Política Nacional de Educación inicial (PNEI) en el Estado de Durango requiere un mayor impulso, ya que el porcentaje de atención a los niños de cero a tres años es 2.7 %, tanto en instituciones oficiales como incorporadas a la Secretaría de Educación del Estado de Durango. Por lo que es necesario trabajar en los tres objetivos que se proponen: Expandir la atención a niños de esta etapa etaría, sin embargo, los recursos en nuestro Estado están muy limitados lograr incrementar el servicio tanto en la modalidad escolarizada como en la No escolarizada. Se realizarán las gestiones con las autoridades involucradas tanto de la Secretaria de Educación del Estado de Durango como de las Presidencias Municipales para lograr la incorporación del 20% anual de estancias que operan sin incorporación oficial, con el propósito de garantizar la seguridad de los niños y niñas que atienden, dando cumplimiento a la reglamentación correspondiente, pero sobre todos que la atención se ajuste a los objetivos y principios rectores de la PNEI. Al mismo tiempo, se impulsará la sensibilización y orientación a padres de familia y cuidadores sobre la atención sensible y cariñosa a nuestros bebés y niños pequeños y las ventajas que ellas aportan para su desarrollo integral. Los retos para lograr la Implementación están en fortalecer la vinculación, comunicación y sensibilización con las diferentes instituciones públicas y privadas que ofrecen la educación inicial, así como con las autoridades de los diferentes niveles de gobierno y la sociedad en general, por lo que este ciclo 2023 iniciaremos con las siguientes acciones que nos permitirán avanzar en el logro de los objetivos propuestos en el PNEI.
B22: CONCEPTO | C22: RUBROS DE GASTOS (DE ACUERDO A REGLAS DE OPERACIÓN) | H22: Acción de seguimiento a la meta | K22: PERÍODO DE REALIZACIÓN DE LA META | L22: MONTO ASIGNADO
B23: Difusión de los objetivos y principios rectores de la Educación Inicial. | C23: Desarrollo de materiales de apoyo, elaboración de videos explicativos, así como la utilización de plataformas en internet como sitios web, páginas electrónicas, aplicaciones electrónicas, etcétera; para la difusión de los objetivos y principios rectores de la Educación Inicial. (Diseñar e implementar una campaña de fortalecimiento de las capacidades parentales basadas en la crianza con ternura). | E23: Difusión de Objetivos y Principios Rectores de la Política Nacionaal de Educación Inicial | H23: Realización de cápsulas sobre la importancia de la educación inicial. Contratación de una compañía que diseñe y opere un micro sitio digital para la difusión de las cápsulas. | K23: mayo -diciembre | L23: 150000
H24: Difundir a través de mensajes en la web orientaciones a la sociedad para mejorar las capacidades de maternaje de los padres y cuidadores. | K24: mayo - diciembre | L24: 50000
C25: Realización de reuniones o foros presenciales y/o virtuales para el análisis de los objetivos y principios rectores de la Educación Inicial. (Diseñar y establecer una estrategia para la difusión de los objetivos y principios rectores de la EI contenidos en el programa de estudios). | E25: Reuniones Interinstitucionales entre responsables gubernamentales en la Atención de niños y niñas de cero a dos años 11 mese de edad | H25: Llevar a cabo reuniones interinstitrucionales, involucrando a SIPINNA para tomar acuerdos que permitan difundir en su ámbito de competencia los objetivos rectores de la PNEI. Se plantean 3 reuniones al año para tomar acuerdos y validar el impacto de esta información. | K25: mayo - diciembre | L25: 108335.8
C26: Visitas regionales a servicios de educación inicial. (Dar seguimiento al plan de implementación de la PNEI en la entidad; Realizar acciones de implementación y diagnóstico que favorezcan el incremento de metas, la aplicación de los estándares de calidad y excelencia). | E26: Seguimiento al plan de implementación de la PNEI | H26: Las visitas de seguimiento a la implementación de la PNEI se realizarán dentro de las visitas de seguimiento contempladas en el rubro de Operación Local. | K26: marzo-diciembre
E27: MONTO TOTAL DE ESTE APOYO | L27: =SUM(L23:L26) -> 308335.8

Sheet OPERACIÓN LOCAL
A1: Secretaría de Educación Pública
A2: Subsecretaría de Educación Básica
A3: Dirección General de Gestión Escolar y Enfoque Territorial
B5: Programa Anual de Trabajo (PAT) 2023
I7: Fecha de validación
I8: =Inicio!B16 -> 08 | J8: =Inicio!C16 -> Marzo | L8: =Inicio!D16 -> 2023
B9: Nombre de la Entidad Federativa | D9: =Inicio!B12 -> Durango
B11: Monto asignado al PEEI en el Convenio para la operación | E11: =Inicio!B21 -> 87576494.98
B13: METAS A ALCANZAR
B15: OPERACIÓN LOCAL DEL PEEI
C16: RUBROS DE GASTOS (DE ACUERDO A REGLAS DE OPERACIÓN) | F16: Acción de seguimiento a la meta | K16: PERIODO DE REALIZACIÓN DE LA META | L16: MONTO ASIGNADO
B17: Acciones para garantizar el funcionamiento e implementación del Programa Expansión de la Educación Inicial. | C17: Planeación.. | F17: Reuniones de Planeación para dar a conocer las reglas de operación del PEEI para ejercicio fiscal 2023 y elaboracion del diagnóstico de necesidades. En las reuniones se convocará a 5 personas del equipo estatal, 1 coordinadora de la modalidad escolarizada, 1 coordinadora de la modalidad no escolarizada y 1 Directora General y 6 Directoras de CENDI en proceso de regularización, 3 supervisoras de CAI, 1 supervisor de CCAPI. | K17: enero - abril | L17: 20000
F18: Reuniones de Planeación para presentar el PAT 2023, informe seguimeinto al PAT , informe Técnico Pedagógico e informe Fisico Financiero a 3 personas de la autoridad educativa local, 5 personas del equipo estatal, 3 Supervisoras de CAI, 1 coordinadora de la modalidade escolarizada y 1 coordinadora de modalidad no escolarizada, 1 supervisor de CCAPI, 1 Coordinadora Estrategia de Visitas a Hogares y 1 Directora General y 13 Directoras de CENDI en proceso de regularización. | K18: enero - diciembre | L18: 30000
C19: Seguimiento.. | F19: Reuniones de información, avances y resultados de la implementación de los recursos del Prgrama en los CAI, CENDI en proceso de regularización, Visitas a Hogares y CCAPI. | K19: marzo - diciembre | L19: 50000
F20: Realizacion de 50 visitas de seguimiento y verificación de la realización de acciones programadas en el PAT 2023, así como seguimiento a la implementación de la Politica Nacional de Educación Inicial. Se convoca al personal de Coordinación de Educación Inicial, Supervisores de CAI, CCAPI y Coordinadora de la Modalidad no Escolarizada a los 6 CAI Federalizados, Estrategia de Visitas a Hogares, 12 CCAPI y 6 CENDI en proceso de regularización. | K20: marzo - diciembre | L20: 180000
F21: Adquisición de guia de paqueteria y mensajeria para envio de dpcumentos oficial a la DDGEyET. | K21: enero -febrero | L21: 20000
C22: Evaluación.. | F22: Realizacion de 30 visitas de evaluación por parte de personal de Coordinación de Educación Inicial, Supervisores de CAI, CCAPI y Coordinadora de la Modalidad no Escolarizada para verificar la realización satisfactoria y oportuna de las acciones programadas en el PAT 2023 a los 6 CAI Federalizados, Estrategia de Visitas a Hogares, 12 CCAPI y 6 CENDI en proceso de regularización. | K22: marzo - diciembre | L22: 150000
F23: Realización de 3 reuniones de evaluación y análisis de resultados de las acciones realizadas durante el ejercicio fiscal 2023 a través del PAT con la autoridad educativa, equipo estatal, directoras de CAI, CENDI en proceso de regularización y coordinadoras de las modalidades escolarizada y no escolarizada. | K23: junio - diciembre | L23: 75000
F24: Realización de la evaluación interna del desempeño del Programa realizada por un externo. | K24: marzo - diciembre | L24: 350000
F25: Reunión con autoridades educativas, equipo estatal y coordinadoras de las modalidades escolarizada y no escolarizada, y padres de familia para presentar los resultados de la evaluación interna realizada por un externo, con base en los Términos de Referencia. | K25: niviembre - diciembre | L25: 70000
C26: Acciones de Contraloría Social.. | F26: Impresión y distribución de lonas, tripticos y formatos, materiales de capacitación y materiales de difusión para la integracion de los 31 comites de Contraloría Social, en 6 CAI, 12 CCAPI y 12 CENDI en proceso de regularización. | K26: marzo - diciembre | L26: 217186.18
F27: Viáticos para integración, capacitación y seguimiento a los Comités de Contraloría Social en los servicios. | K27: marzo - diciembre | L27: 225000
F28: Viáticos para asistir a reuniones nacionales de capacitación de Contraloría Social, que convoque la SEB. | K28: marzo - diciembre | L28: 30000
C29: Asistencia a reuniones regionales y/o nacionales.. | F29: Reunión Nacionales convocadas por la DGGEyET. | K29: marzo - diciembre | L29: 300000
E32: MONTO TOTAL DE ESTE APOYO | L32: =SUM(L17:L31) -> 1717186.18

Sheet Memoria Cálculo
A1: Secretaría de Educación Pública
A2: Subsecretaría de Educación Básica
A3: Dirección General de Gestión Escolar y Enfoque Territorial
E7: Programa Anual de Trabajo (PAT) 2023
J9: Fecha de validación
J10: =Inicio!B16 -> 08 | K10: =Inicio!C16 -> Marzo | L10: =Inicio!D16 -> 2023
F12: =Inicio!B12 -> Durango
C14: Monto asigando al PEEI en el Convenio para la operación | J14: =Inicio!B21 -> 87576494.98
C16: APOYO | H16: MONTO PLANEADO | K16: PROCENTAJE
C17: APOYO 1. Fortalecimiento de los CAI Federalizado y los CENDI en proceso de regularización con inmueble federalizado | H17: ='APOYO 1'!L105+'APOYO 1'!L113 -> 1950000 | K17: =H17/Inicio!B21 -> 0.0222662485
C18: APOYO 2. Estrategia de Visitas a Hogares | H18: ='APOYO 2'!L28+'APOYO 2'!L36 -> 930000 | K18: =H18/Inicio!B21 -> 0.01061928775
C19: APOYO 3. Implementación y operación de los CCAPI. (Centros Comunitarios De Atención a la Primera Infancia) | H19: ='APOYO 3'!L73 -> 5355600 | K19: =H19/Inicio!B21 -> 0.06115339511
C20: APOYO 4. Capacitación de Agentes Educativos Federalizados y Comunitarios | H20: ='APOYO 4'!L26 -> 385600 | K20: =H20/Inicio!B21 -> 0.004403007909
C21: APOYO 5. CENDI en proceso de regularización con apoyo voluntario | H21: ='APOYO 5'!L66 -> 76929773 | K21: =H21/Inicio!B21 -> 0.8784294578
C22: APOYO 6. Difusión de los objetivos y principios rectores de la Educación Inicial | H22: ='APOYO 6'!L27 -> 308335.8 | K22: =H22/Inicio!B21 -> 0.003520759766
C23: Gastos de operación local | H23: ='OPERACIÓN LOCAL'!L32 -> 1717186.18 | K23: =H23/Inicio!B21 -> 0.01960784318
C25: SUMA TOTAL DE TODOS LOS APOYOS | H25: =H17+H18+H19+H20+H21+H22+H23 -> 87576494.98
C26: PRESUPUESTO FEDERAL MINISTRADO | H26: =Inicio!B21 -> 87576494.98
C27: DIFERENCIA | H27: =H26-H25 -> 0

Sheet Materiales Baúl
A1: SECRETARÍA DE EDUCACIÓN PÚBLICA
A2: SUBSECRETARÍA DE EDUCACIÓN BÁSICA
A3: DIRECCIÓN GENERAL DE GESTIÓN ESCOLAR Y ENFOQUE TERRITORIAL
F5: Durango
D7: Relación de material que integra el baul
B9: "Nota: Los materiales mencionados fortalecen la práctica educativa de los agentes educativos, ya que les facilita la creación de las condiciones necesarias para diseñar y realizar actividades lúdicas de interés para niñas y niños beneficiados. Así, estos encuentran dentro de estos espacios enriquecidos, experiencias que potencializan su desarrollo y creatividad."
C10: 1 paquete de material didáctico por cada uno de los 12 CCAPI con este contenido:
D11: Materiales | H11: Cantidad
D12: Juguete de madera con animales de la granja para ensartar | H12: 2
D13: Manoplas de tela, en ambas caras una textura diferente, de franela y jerga, tela tipo aborregada y toalla; con puño elástico. Medida; 20 cm de largo (mano adulta). | H13: 1
D14: Bebés en tela suave didáctico, relleno de algodón, con medidas no menor a 30 cm y no mayor a 40 cm; se considera ropa para vestir niña y niño: ejemplo: 1 sudadera, chaleco a proporción con cierre ancho de cremallera y 2 botones didácticos con velcro, y pantalones a proporción con ajuste en resorte, zapatos | H14: 2
D15: Títeres de mano (tamaño de mano adulta) hechos de tela suave, diseño único animales diferentes. Decorado relieve, de medidas: 30 cm de alto por 20 cm de ancho | H15: 5
D16: Juegos de resaque en plástico no tóxico con 6 piezas de animales variados sin rebabas, de piezas gruesas, en base de plástico no tóxico, con impresión de figuras y colores vivos, con silueta forjada para facilitar la ubicación de las piezas. Medidas: 18 x 15 cm. | H16: 2
D17: Crayolas jumbo, caja con 28 piezas | H17: 5
D18: Crayolas extra jumbo, caja con 12 piezas | H18: 5
D19: Rompecabezas de madera | H19: 2
D20: Paquete de hojas de máquina blancas | H20: 1
D21: Juegos de ensarte con figuras de madera mayor a 4 cm con agujeta para ensartar. Figuras de plástico rígido no tóxico, sin rebabas ni asperezas, y una agujeta para ensartar (gruesa). Medidas: aproximadamente 3 cm, varía según la figura. (30 piezas, 5 juegos) | H21: 2
D22: Tapete lúdico de seguridad | H22: 9
D23: Juego de pelotas con las siguientes caracteríticas: 1 pelota sensorial táctil, 1 pelota de agarre texturizada, 1 pelota de agarre de reconocimiento de color, 1 pelota blanda consonido para ejercicios sensoriales y reconocimiento de objetos. | H23: 1
D24: 5 set de instrumentos musicales con xilófono, maracas, castañuelas y triángulo | H24: 5
D25: Paquete con 5 frascos de pintura témpera, de 500 ml. Cada frasco, de los siguientes colores: 2 blancos, 1 rojo, 1 amarillo, 1 azul | H25: 1
D26: Titeres de mano diseño familia, paquete con 6 piezas: mamá, papá, niño, niña, abuela, abuelo | H26: 1

Sheet Mochila didáctica
A1: SECRETARÍA DE EDUCACIÓN PÚBLICA
A2: SUBSECRETARÍA DE EDUCACIÓN BÁSICA
A3: DIRECCIÓN GENERAL DE GESTIÓN ESCOLAR Y ENFOQUE TERRITORIAL
F5: =Inicio!B12 -> Durango
D7: Relacion de material que integra la mochila didáctica
B9: "Nota: Los materiales sugeridos fortalecen la práctica educativa de los agentes educativos, ya que les facilita la creación de las condiciones necesarias para diseñar y realizar actividades lúdicas de interés para los niñas y niños beneficiados. De igual manera, estos tienen dentro de dichos espacios enriquecidos, experiencias que potencializan su desarrollo y creatividad a través del uso y manejo de dichos materiales y se promueve una crianza amorosa."
F10: 1 paquete de material didáctico para cada uno de los 24 agentes educativos, con este contenido:
F11: Materiales | J11: Cantidad
F12: Set de pelotas sensoriales (20 × 25 cm.), paquete de 6 pzas. | J12: 1
F13: Paquete de Fun foam blocks gigantes, paquete con 48 pzas. | J13: 1
F14: Paquete de frutas y verduras de madera con velcro p/cortar en estuche plástico (16 × 12 cm.), paquete con 9 pzas. | J14: 1
F15: Paquete de arena moldeable, arena mágica en bolsa metálica con 350 gramos. Paquete con 9 bolsas de diferentes colores. | J15: 1
F16: Bolsa de changuitos, de plástico, con contenedor plástico con asa. Bolsa con 50 pzas. | J16: 1
F17: Bolsa con material para ensertar, de plástico, de 500 grms | J17: 1
F18: Bolsa Juego de ensamble giraruedas, con piezas de plástico rígido que se unen entre sí para formar distintas figuras. Medida Pieza: 5 x 5 x 1.5 cm aprox. Bolsa de 500 grms. | J18: 1
F19: Juego rompecabezas grueso de madera de 4 a 6 Piezas, medidas 15×15 cm., en diferentes modelos granja, animales, medios de transporte, frutas, etc. | J19: 6
F20: Paquete con 3 instrumentos musicales: 2 tambores de Madera c/Baquetas* (13.50x 9 cm.), 2 palos de lluvia grande de plástico transparente y 6 castañuelas de madera de 6 cms. (de diferentes modelos) | J20: 1
F25: 15 MOCHILAS INDIGENAS CADA UNA DEBE CONTENER:
F26: Materiales | J26: Cantidad
F27: Juego de pelota sensoriales | J27: 1
F28: Memoria de sonidos 6 Piezas. | J28: 1
F29: Pintura digital no tóxica (para resurtir cada mes)
F30: juego de títeres de dedo con 10 piezas( sustituible por fieltro o telas diversas, hilos, chaquier, etc) | J30: 1
F31: Arena Moldeable no tóxica, varios colores | J31: 5
F32: Contenedores de plástico de diversos tamaños (para la masa de sal y otros materiales o para clasificar objetos pequeños)
F33: juego de changuitos gigantes de plástico con contenedor de plástico. | J33: 1
F34: gorras de gabardina en color arena con bordado en color blanco. | J34: 2
F35: .Bolsa ecológica o morral de yute o de tela reforzada en color guinda o crudo | J35: 1
F36: playeras tipo polo premium en sublimación color arena y botones, con Serigrafía en color blanco. | J36: 2
F37: Crayones de cera / Tamaño extra jumbo. Caja con 12 | J37: 5
F38: USB con material sonoro y de vídeo, instructivos, material de lectura, etc. | J38: 2
F39: Altavoz Bluetooth inalámbrico portátil, reproductor de MP3 con entrada para USB | J39: 1
F40: Muñeca de niña morena en tela suave didáctica, relleno de algodón, con medidas no menor a 30 centímetros y no mayor a 40 centímetros, con tres cambios de ropa y huaraches. | J40: 1
F41: Muñeco de niño afrodescendiente de pelo rizado en tela suave, relleno de algodón, con medidas no menor a 30 cms y no mayor a 40 cms, con tres cambios de ropa, tenis y huaraches | J41: 1
F42: 3 dados grandes, varios colores, medidas: 5.5x5.5x5.5 cm. | J42: 3
F43: rompecabezas de plástico ( alimento, animales, familia) | J43: 3
F44: rompecabezas de madera. ( transporte, frutas y verduras, animales) | J44: 3
F45: Kit de manualidades ( 3 tijeras de punta roma, papel crepé estambre, fieltro, pegamento, fomi de colores, hojas blancas y de colores, estambre, mecate | J45: 1
F46: Set de instrumentos musicales ( (incluir los de la región: tambor, pandero, sonaja, cascabeles de 3 tamaños, palo de lluvia pequeño, silbatos de barro tipo ocarina). | J46: 1
F47: Juguete de madera con animales de la granja y domésticos para ensartar | J47: 1
F48: Amoxtli conetl. (libro para bebés): Conetamalli (bebé tamal) de Isela Xospa. | J48: 1
F49: 1 mochila de poliéster de alta resistencia color negro con serigrafía color blanco con ruedas | J49: 1
F50: Las sublimaciones, estampados y serigrafías deberán de apegarse a lo establecido en el Manual de Identidad Gráfica 2018-2024 del Gobierno de México (https://www.gob.mx/wikiguias/articulos/manual-de identidad-grafica-2018-2024)

Sheet Hoja2

Sheet Hoja1 (hidden)
B7: APOYO 1. FORTALECIMIENTO DE LOS CAI FEDERALIZADO Y LOS CENDI EN PROCESO DE REGULARIZACIÓN CON INMUEBLE FEDERALIZADO
B8: NOMBRE DEL SERVICIO DE EDUCACIÓN INICIAL y CCT CAI Federalizado. | D8: RUBRO DE GASTO | E8: META | H8: ACCIONES DE SEGUIMIENTO A LA META | K8: PERIODO DE REALIZACIÓN DE LA META | L8: MONTO ASIGNADO
B9: CAI 1 | D9: Mantenimiento preventivo y correctivo de los inmuebles
D11: Garantizar la seguridad de los inmuebles con base en los dictámenes de Protección Civil.
D13: Seguros de responsabilidad civil.
B15: NOMBRE DEL SERVICIO DE EDUCACIÓN INICIAL y CCT CENDI en proceso de regularización con inmueble Federalizado | D15: RUBRO DE GASTO | E15: META | H15: ACCIONES DE SEGUIMIENTO A LA META | K15: PERIODO DE REALIZACIÓN DE LA META | L15: MONTO ASIGNADO
D16: Mantenimiento preventivo y correctivo de los inmuebles
D18: Garantizar la seguridad de los inmuebles con base en los dictámenes de Protección Civil.
D20: Seguros de responsabilidad civil.
E22: MONTO TOTAL DE ESTE APOYO

Sheet HF (hidden)
B1: Apoyo1
C4: Mantenimiento preventivo.
C5: Mantenimiento correctivo.
C6: Protección Civil y Seguridad.
B9: Apoyo2
B10: Apoyo para Agentes Educativos (Modalidad No Escolarizada) | C10: Apoyo económico para cada agente educativo responsable de implementar la Estrategia de Visitas a Hogares. | M10: Apoyo2_AE1
C11: Unidad Didáctica para los agentes educativos responsables de implementar la Estrategia de Visitas a Hogares. | M11: Apoyo2_AE2
B15: Apoyo3
C16: Apoyo económico para el Agente Educativo Comunitario.
C17: Servicio de alimentación de niñas y niños que asisten al CCAPI.
C18: Equipamiento y mobiliario.
C19: Baúl con materiales didácticos.
B23: Apoyo 4
B24: Desarrollo de capacitación a los Agentes Educativos Federalizados y Comunitarios | C24: Actualización profesional con énfasis en el nuevo Plan y Programa de estudio de Educación Inicial para los Agentes Educativos.
C25: Plataformas tecnológicas para capacitación virtual.
C26: Estrategia de Capacitación Estatal.
B29: Apoyo 5
C30: Apoyo a las personas que brindan acciones voluntarias para la atención de niñas y niños matriculados
C31: Pago para otorgar el servicio de alimentación de las niñas y los niños matriculados
C32: Pago de servicios básicos (luz, agua, gas)
B34: Apoyo6

Sheet HC (hidden)
A1: apoyos_id | B1: apoyodescrip_id | C1: rubros_id | D1: apoyo_descripcion | E1: Seleccione el tipo de mantenimiento | F1: Seleccione el tipo de mantenimiento
A2: 1 | B2: 1 | C2: 1 | D2: 1.1 CAI Federalizado | E2: 1.1.1_Mantenimiento_preventivo | F2: Mantenimiento_preventivo.
A3: 1 | B3: 1 | C3: 2 | D3: 1.1 CAI Federalizado | E3: 1.1.1_Mantenimiento_correctivo. | F3: Mantenimiento_correctivo.
A4: 1 | B4: 1 | C4: 3 | D4: 1.1 CAI Federalizado | E4: 1.1.2_Garantizar_la_seguridad_de_los_inmuebles_con_base_en_los_dictámenes_de_Protección_Civil. | F4: Protección_Civil_y_Seguridad.
A5: 1 | B5: 2 | C5: 5 | D5: 1.2 CENDI en proceso de regularización con inmueble federalizado | E5: 1.2.1_Mantenimiento_preventivo | F5: Mantenimiento_preventivo.
A6: 1 | B6: 2 | C6: 6 | D6: 1.2 CENDI en proceso de regularización con inmueble federalizado | E6: 1.2.1_Mantenimiento_correctivo. | F6: Mantenimiento_correctivo.
A7: 1 | B7: 2 | C7: 7 | D7: 1.2 CENDI en proceso de regularización con inmueble federalizado | E7: 1.2.2_Garantizar_la_seguridad_de_los_inmuebles_con_base_en_los_dictámenes_de_Protección_Civil. | F7: Protección_Civil_y_Seguridad.
A8: 2 | B8: 3 | C8: 9 | D8: 2.1 Apoyo para Agentes Educativos Federalizados de la Estrategia de Visitas a Hogares (Modalidad No Escolarizada). | E8: 2.1.1_Traslado_para_cada_Agente_Educativo_Federalizado. | F8: Traslado_para_cada_Agente_Educativo_Federalizado._2.1.1
A9: 2 | B9: 4 | C9: 10 | D9: 2.2 Unidad Didáctica. | E9: 2.2.1_Compra_de_materiales_que_integran_la_Unidad_Didáctica. | F9: Compra_de_materiales_que_integran_la_Unidad_Didáctica._2.2.1
A10: 3 | B10: 5 | C10: 11 | D10: 3.1 Apoyo para la operación de los CCAPI | E10: 3.1.1_Apoyo_económico_para_los_Agentes_Educativos_Comunitarios. | F10: Apoyo_económico_para_los_Agentes_Educativos_Comunitarios._3.1.1
A11: 3 | B11: 5 | C11: 12 | D11: 3.1 Apoyo para la operación de los CCAPI | E11: 3.1.2_Insumos_para_la_alimentación_de_niñas_y_niños_que_asisten_a_este_servicio. | F11: Insumos_para_la_alimentación_de_niñas_y_niños_que_asisten_a_este_servicio._3.1.2
A12: 3 | B12: 5 | C12: 13 | D12: 3.1 Apoyo para la operación de los CCAPI | E12: 3.1.3_Mobiliario_y_equipamiento | F12: Mobiliario_y_equipamiento_3.1.3
A13: 3 | B13: 5 | C13: 14 | D13: 3.1 Apoyo para la operación de los CCAPI | E13: 3.1.4_Recursos_didácticos_(Baúl). | F13: Recursos_didácticos_(Baúl)._3.1.4
A14: 4 | B14: 6 | C14: 15 | D14: 4.1 Desarrollo de capacitación a los Agentes Educativos Federalizados y Comunitarios: Modalidad presencial, a distancia o híbrida. | E14: 4.1.1_Capacitación_Estatal. | F14: Capacitación_Estatal._4.1.1
A15: 4 | B15: 6 | C15: 16 | D15: 4.1 Desarrollo de capacitación a los Agentes Educativos Federalizados y Comunitarios: Modalidad presencial, a distancia o híbrida. | E15: 4.1.2_Diplomado_de_profesionalización. | F15: Diplomado_de_profesionalización._4.1.2
A16: 4 | B16: 6 | C16: 17 | D16: 4.1 Desarrollo de capacitación a los Agentes Educativos Federalizados y Comunitarios: Modalidad presencial, a distancia o híbrida. | E16: 4.1.3_Acceso_a_plataformas_tecnológicas_para_capacitación_virtual. | F16: Acceso_a_plataformas_tecnológicas_para_capacitación_virtual._4.1.3
A17: 5 | B17: 7 | C17: 18 | D17: 5.1 Apoyo para la operación de los CENDI en proceso de regularización con apoyo voluntario. | E17: 5.1.1_Apoyo_a_las_personas_que_brindan_acciones_voluntarias_para_la_atención_de_niñas_y_niños_matriculados. | F17: Apoyo_a_las_personas_que_brindan_acciones_voluntarias_para_la_atención_de_niñas_y_niños_matriculados._5.1.1
A18: 5 | B18: 7 | C18: 19 | D18: 5.1 Apoyo para la operación de los CENDI en proceso de regularización con apoyo voluntario. | E18: 5.1.2_Insumos_para_la_alimentación_de_niñas_y_niños_matriculados. | F18: Insumos_para_la_alimentación_de_niñas_y_niños_matriculados._5.1.2
A19: 5 | B19: 7 | C19: 20 | D19: 5.1 Apoyo para la operación de los CENDI en proceso de regularización con apoyo voluntario. | E19: 5.1.3_Servicios_básicos_(luz,_agua_y_gas). | F19: Servicios_básicos_(luz,_agua_y_gas)._5.1.3
A20: 6 | B20: 8 | C20: 21 | D20: 6.1 Desarrollo y divulgación de materiales, eventos presenciales, virtuales y/o híbridos, para la difusión de los objetivos y principios rectores de la Educación Inicial. | E20: 6.1.1_Desarrollo_de_materiales_de_apoyo_para_la_difusión_(infografías,dípticos,_trípticos,videos,_medios_electrónicos,_plataformas,_etc.). | F20: Desarrollo_de_materiales_de_apoyo_para_la_difusión_(infografías,dípticos,_trípticos,videos,_medios_electrónicos,_plataformas,_etc.)._6.1.1
A21: 6 | B21: 8 | C21: 22 | D21: 6.1 Desarrollo y divulgación de materiales, eventos presenciales, virtuales y/o híbridos, para la difusión de los objetivos y principios rectores de la Educación Inicial. | E21: 6.1.2_Realización_de_reuniones,_foros,_webinares,_etcétera,_para_el_análisis_de_los_objetivos_y_principios_rectores_de_la_Educación_Inicial. | F21: Realización_de_reuniones,_foros,_webinares,_etcétera,_para_el_análisis_de_los_objetivos_y_principios_rectores_de_la_Educación_Inicial._6.1.2
A22: 7 | B22: 9 | C22: 23 | D22: 7.1 Acciones para garantizar el funcionamiento e implementación del Programa Expansión de la Educación Inicial. | E22: 7.1.1_Planeación. | F22: Planeación._7.1.1
A23: 7 | B23: 9 | C23: 24 | D23: 7.1 Acciones para garantizar el funcionamiento e implementación del Programa Expansión de la Educación Inicial. | E23: 7.1.2_Seguimiento. | F23: Seguimiento._7.1.2
A24: 7 | B24: 9 | C24: 25 | D24: 7.1 Acciones para garantizar el funcionamiento e implementación del Programa Expansión de la Educación Inicial. | E24: 7.1.3_Evaluación. | F24: Evaluación._7.1.3
A25: 7 | B25: 9 | C25: 26 | D25: 7.1 Acciones para garantizar el funcionamiento e implementación del Programa Expansión de la Educación Inicial. | E25: 7.1.4_Acciones_de_Contraloría_Social. | F25: Acciones_de_Contraloría_Social._7.1.4
A26: 7 | B26: 9 | C26: 27 | D26: 7.1 Acciones para garantizar el funcionamiento e implementación del Programa Expansión de la Educación Inicial. | E26: 7.1.5_Reuniones_nacionales_convocadas_por_la_DGGEyET. | F26: Reuniones_nacionales_convocadas_por_la_DGGEyET._7.1.5
B29: apoyos_id | C29: apoyodescrip_id | D29: rubros_id | E29: apoyo_descripcion | G29: nom_descrip | H29: id_anexo9
B30: 1 | C30: 1 | D30: 1 | E30: 1.1 CAI Federalizado | F30: Mantenimiento_preventivo. | G30: Revisión del funcionamiento y reparación menor del boiler de paso. | H30: 1
B31: 1 | C31: 1 | D31: 1 | E31: 1.1 CAI Federalizado | F31: Mantenimiento_preventivo. | G31: Revisión de la instalación de tanque de gas LP estacionario y reparaciones menores. | H31: 2
B32: 1 | C32: 1 | D32: 1 | E32: 1.1 CAI Federalizado | F32: Mantenimiento_preventivo. | G32: Revisión y mantenimiento de bomba hidroneumática. | H32: 4
B33: 1 | C33: 1 | D33: 1 | E33: 1.1 CAI Federalizado | F33: Mantenimiento_preventivo. | G33: Revisión y cambio de instalaciones hidráulicas. | H33: 5
B34: 1 | C34: 1 | D34: 1 | E34: 1.1 CAI Federalizado | F34: Mantenimiento_preventivo. | G34: Revisión de instalaciones eléctricas (tapas, registros y cableado) y reparaciones menores. | H34: 6
B35: 1 | C35: 1 | D35: 1 | E35: 1.1 CAI Federalizado | F35: Mantenimiento_preventivo. | G35: Revisión y mantenimiento de salidas de emergencia y sistemas de seguridad. | H35: 8
B36: 1 | C36: 1 | D36: 2 | E36: 1.1 CAI Federalizado | F36: Mantenimiento_correctivo. | G36: Cambio de instalación eléctrica. | H36: 9
B37: 1 | C37: 1 | D37: 2 | E37: 1.1 CAI Federalizado | F37: Mantenimiento_correctivo. | G37: Cambios de tanques de gas (apegándose a la normatividad correspondiente) | H37: 10
B38: 1 | C38: 1 | D38: 2 | E38: 1.1 CAI Federalizado | F38: Mantenimiento_correctivo. | G38: Cambio o mantenimiento de transformador. | H38: 11
B39: 1 | C39: 1 | D39: 2 | E39: 1.1 CAI Federalizado | F39: Mantenimiento_correctivo. | G39: Reparación de puertas, ventanas y pasamanos. | H39: 12
B40: 1 | C40: 1 | D40: 2 | E40: 1.1 CAI Federalizado | F40: Mantenimiento_correctivo. | G40: Reparación de grietas y cuarteaduras en paredes y muros. | H40: 13
B41: 1 | C41: 1 | D41: 2 | E41: 1.1 CAI Federalizado | F41: Mantenimiento_correctivo. | G41: Impermeabilización. | H41: 14
B42: 1 | C42: 1 | D42: 2 | E42: 1.1 CAI Federalizado | F42: Mantenimiento_correctivo. | G42: Cambio de tazas de baño para niñas y niños, mingitorio de cerámica, lavabos, herrajes y llaves. | H42: 15
B43: 1 | C43: 1 | D43: 2 | E43: 1.1 CAI Federalizado | F43: Mantenimiento_correctivo. | G43: Mantenimiento y desazolve de drenajes y alcantarillas. | H43: 17
B44: 1 | C44: 1 | D44: 2 | E44: 1.1 CAI Federalizado | F44: Mantenimiento_correctivo. | G44: Cambio de lámparas arbotantes. | H44: 18
B45: 1 | C45: 1 | D45: 2 | E45: 1.1 CAI Federalizado | F45: Mantenimiento_correctivo. | G45: Cambio de lámparas LED. | H45: 19
B46: 1 | C46: 1 | D46: 2 | E46: 1.1 CAI Federalizado | F46: Mantenimiento_correctivo. | G46: Cambio de poste octagonal de concreto. | H46: 20
B47: 1 | C47: 1 | D47: 2 | E47: 1.1 CAI Federalizado | F47: Mantenimiento_correctivo. | G47: Cambio de losetas en pisos y muros de las salas educativas. | H47: 21
B48: 1 | C48: 1 | D48: 2 | E48: 1.1 CAI Federalizado | F48: Mantenimiento_correctivo. | G48: Cambio de puerta por puerta abatible. | H48: 22
B49: 1 | C49: 1 | D49: 2 | E49: 1.1 CAI Federalizado | F49: Mantenimiento_correctivo. | G49: Rehabilitación para área de juego. | H49: 23
B50: 1 | C50: 1 | D50: 2 | E50: 1.1 CAI Federalizado | F50: Mantenimiento_correctivo. | G50: Rehabilitación de domos y techos de policarbonato. | H50: 24
B51: 1 | C51: 1 | D51: 2 | E51: 1.1 CAI Federalizado | F51: Mantenimiento_correctivo. | G51: Cambio de interruptor termo magnético. | H51: 25
B52: 1 | C52: 1 | D52: 2 | E52: 1.1 CAI Federalizado | F52: Mantenimiento_correctivo. | G52: Cambio de centro de carga. | H52: 26
B53: 1 | C53: 1 | D53: 2 | E53: 1.1 CAI Federalizado | F53: Mantenimiento_correctivo. | G53: Cambio de vertederos de acero inoxidable. | H53: 27
B54: 1 | C54: 1 | D54: 2 | E54: 1.1 CAI Federalizado | F54: Mantenimiento_correctivo. | G54: Rehabilitación y lavado de cisterna. | H54: 28
B55: 1 | C55: 1 | D55: 2 | E55: 1.1 CAI Federalizado | F55: Mantenimiento_correctivo. | G55: Rehabilitación hidro-sanitaria. | H55: 29
B56: 1 | C56: 1 | D56: 2 | E56: 1.1 CAI Federalizado | F56: Mantenimiento_correctivo. | G56: Revisión y cambio de las condiciones de lámparas y focos. | H56: 30
B57: 1 | C57: 1 | D57: 2 | E57: 1.1 CAI Federalizado | F57: Mantenimiento_correctivo. | G57: Allanar pisos de patio que presentes baches. | H57: 31
B58: 1 | C58: 1 | D58: 3 | E58: 1.1 CAI Federalizado | F58: Protección_Civil_y_Seguridad. | G58: Sistema de alarmas de emergencia. | H58: 32
B59: 1 | C59: 1 | D59: 3 | E59: 1.1 CAI Federalizado | F59: Protección_Civil_y_Seguridad. | G59: Puertas de salida de emergencia con barra antipánico. | H59: 33
B60: 1 | C60: 1 | D60: 3 | E60: 1.1 CAI Federalizado | F60: Protección_Civil_y_Seguridad. | G60: Adquisición, habilitación y mantenimiento de circuito cerrado con cámaras en las salas educativas. | H60: 34
B61: 1 | C61: 1 | D61: 3 | E61: 1.1 CAI Federalizado | F61: Protección_Civil_y_Seguridad. | G61: Película anti estallante para ventanas, puertas y espejos. | H61: 36
B62: 1 | C62: 1 | D62: 3 | E62: 1.1 CAI Federalizado | F62: Protección_Civil_y_Seguridad. | G62: Contactos de seguridad y de protección infantil. | H62: 37
B63: 1 | C63: 1 | D63: 3 | E63: 1.1 CAI Federalizado | F63: Protección_Civil_y_Seguridad. | G63: Contactos con protección a tierra resistente al agua. | H63: 38
B64: 1 | C64: 1 | D64: 3 | E64: 1.1 CAI Federalizado | F64: Protección_Civil_y_Seguridad. | G64: Punta pararrayos. | H64: 39
B65: 1 | C65: 1 | D65: 3 | E65: 1.1 CAI Federalizado | F65: Protección_Civil_y_Seguridad. | G65: Extintores tipo K. | H65: 40
B66: 1 | C66: 1 | D66: 3 | E66: 1.1 CAI Federalizado | F66: Protección_Civil_y_Seguridad. | G66: Unidades móviles para tipo de fuego ABC. | H66: 41
B67: 1 | C67: 1 | D67: 3 | E67: 1.1 CAI Federalizado | F67: Protección_Civil_y_Seguridad. | G67: Mantenimiento o cambio de extintores de CO2. | H67: 42
B68: 1 | C68: 1 | D68: 3 | E68: 1.1 CAI Federalizado | F68: Protección_Civil_y_Seguridad. | G68: Soporte para cada extintor. | H68: 43
B69: 1 | C69: 1 | D69: 3 | E69: 1.1 CAI Federalizado | F69: Protección_Civil_y_Seguridad. | G69: Sistemas fijos contra incendios. | H69: 44
B70: 1 | C70: 1 | D70: 3 | E70: 1.1 CAI Federalizado | F70: Protección_Civil_y_Seguridad. | G70: Detectores de fuego y humo fotoeléctricos. | H70: 45
B71: 1 | C71: 1 | D71: 3 | E71: 1.1 CAI Federalizado | F71: Protección_Civil_y_Seguridad. | G71: Colores y señales de seguridad e higiene para identificación de riesgos por fluidos conducidos en tuberías. | H71: 46
B72: 1 | C72: 1 | D72: 3 | E72: 1.1 CAI Federalizado | F72: Protección_Civil_y_Seguridad. | G72: Dictamen de seguridad estructural. | H72: 48
B73: 1 | C73: 1 | D73: 3 | E73: 1.1 CAI Federalizado | F73: Protección_Civil_y_Seguridad. | G73: Dictamen eléctrico. | H73: 49
B74: 1 | C74: 1 | D74: 3 | E74: 1.1 CAI Federalizado | F74: Protección_Civil_y_Seguridad. | G74: Dictamen de gas. | H74: 50
B75: 1 | C75: 1 | D75: 3 | E75: 1.1 CAI Federalizado | F75: Protección_Civil_y_Seguridad. | G75: Póliza de seguro para bebés, niñas y niños. | H75: 51
B76: 1 | C76: 1 | D76: 3 | E76: 1.1 CAI Federalizado | F76: Protección_Civil_y_Seguridad. | G76: Mascarilla infantil para oxígeno. | H76: 52
B77: 1 | C77: 1 | D77: 3 | E77: 1.1 CAI Federalizado | F77: Protección_Civil_y_Seguridad. | G77: Chalecos con reflejantes. | H77: 53
B78: 1 | C78: 1 | D78: 3 | E78: 1.1 CAI Federalizado | F78: Protección_Civil_y_Seguridad. | G78: Brazalete de emergencia. | H78: 54
B79: 1 | C79: 1 | D79: 3 | E79: 1.1 CAI Federalizado | F79: Protección_Civil_y_Seguridad. | G79: Brazalete pediátrico (baumanómetro). | H79: 55
B80: 1 | C80: 1 | D80: 3 | E80: 1.1 CAI Federalizado | F80: Protección_Civil_y_Seguridad. | G80: Botiquín de emergencia | H80: 56
B81: 1 | C81: 1 | D81: 3 | E81: 1.1 CAI Federalizado | F81: Protección_Civil_y_Seguridad. | G81: Restitución de material del botiquín que se haya agotado. | H81: 57
B82: 1 | C82: 1 | D82: 3 | E82: 1.1 CAI Federalizado | F82: Protección_Civil_y_Seguridad. | G82: Camillas rígidas para primeros auxilios (contar con al menos 3). | H82: 58
B83: 1 | C83: 1 | D83: 3 | E83: 1.1 CAI Federalizado | F83: Protección_Civil_y_Seguridad. | G83: Cascos de seguridad (contar con al menos 5.) | H83: 59
B84: 1 | C84: 1 | D84: 3 | E84: 1.1 CAI Federalizado | F84: Protección_Civil_y_Seguridad. | G84: Botas de hule sanitarias (contar con al menos 5 pares). | H84: 60
B85: 1 | C85: 1 | D85: 3 | E85: 1.1 CAI Federalizado | F85: Protección_Civil_y_Seguridad. | G85: Guantes de carnaza (contar con al menos 5 pares). | H85: 61
B86: 1 | C86: 1 | D86: 3 | E86: 1.1 CAI Federalizado | F86: Protección_Civil_y_Seguridad. | G86: Señalética de protección civil. | H86: 62
B87: 1 | C87: 1 | D87: 3 | E87: 1.1 CAI Federalizado | F87: Protección_Civil_y_Seguridad. | G87: Señalamientos contra incendio. | H87: 63
B88: 1 | C88: 1 | D88: 3 | E88: 1.1 CAI Federalizado | F88: Protección_Civil_y_Seguridad. | G88: Protectores de columna y muros de contención. | H88: 64
B89: 1 | C89: 1 | D89: 3 | E89: 1.1 CAI Federalizado | F89: Protección_Civil_y_Seguridad. | G89: Walkie talkie (4). | H89: 65
B90: 1 | C90: 1 | D90: 3 | E90: 1.1 CAI Federalizado | F90: Protección_Civil_y_Seguridad. | G90: Conos de plástico. | H90: 66
B91: 1 | C91: 1 | D91: 3 | E91: 1.1 CAI Federalizado | F91: Protección_Civil_y_Seguridad. | G91: Megáfono (2). | H91: 67
B92: 1 | C92: 1 | D92: 3 | E92: 1.1 CAI Federalizado | F92: Protección_Civil_y_Seguridad. | G92: Toboganes de evacuación. | H92: 68
B93: 1 | C93: 1 | D93: 3 | E93: 1.1 CAI Federalizado | F93: Protección_Civil_y_Seguridad. | G93: Detectores de gases. | H93: 69
B94: 1 | C94: 1 | D94: 3 | E94: 1.1 CAI Federalizado | F94: Protección_Civil_y_Seguridad. | G94: Manguera de bombero. | H94: 70
B95: 1 | C95: 1 | D95: 3 | E95: 1.1 CAI Federalizado | F95: Protección_Civil_y_Seguridad. | G95: Lámparas de emergencia automáticas. | H95: 71
B96: 1 | C96: 1 | D96: 3 | E96: 1.1 CAI Federalizado | F96: Protección_Civil_y_Seguridad. | G96: Material retardante de fuego para mobiliario, cortinas y plafones entre otros. | H96: 72
B97: 1 | C97: 1 | D97: 3 | E97: 1.1 CAI Federalizado | F97: Protección_Civil_y_Seguridad. | G97: Controles de acceso a zonas de riesgo. | H97: 73
B98: 1 | C98: 1 | D98: 3 | E98: 1.1 CAI Federalizado | F98: Protección_Civil_y_Seguridad. | G98: Sistema de bombeo de emergencia. | H98: 74
B99: 1 | C99: 1 | D99: 3 | E99: 1.1 CAI Federalizado | F99: Protección_Civil_y_Seguridad. | G99: Rociadores. | H99: 75
B100: 1 | C100: 1 | D100: 3 | E100: 1.1 CAI Federalizado | F100: Protección_Civil_y_Seguridad. | G100: Detectores de calor. | H100: 76
B101: 1 | C101: 1 | D101: 3 | E101: 1.1 CAI Federalizado | F101: Protección_Civil_y_Seguridad. | G101: Sensores de movimiento. | H101: 77
B102: 1 | C102: 1 | D102: 3 | E102: 1.1 CAI Federalizado | F102: Protección_Civil_y_Seguridad. | G102: Compra y colocación de cinta antiderrapante. | H102: 78
B103: 1 | C103: 1 | D103: 3 | E103: 1.1 CAI Federalizado | F103: Protección_Civil_y_Seguridad. | G103: Programa Interno de Protección Civil. | H103: 79
B104: 1 | C104: 1 | D104: 3 | E104: 1.1 CAI Federalizado | F104: Protección_Civil_y_Seguridad. | G104: Seguros de responsabilidad Civil. | H104: 80
B105: 1 | C105: 1 | D105: 3 | E105: 1.1 CAI Federalizado | F105: Protección_Civil_y_Seguridad. | G105: Dictamen de certificación integral por tercer acreditado. | H105: 81
B106: 2 | C106: 3 | D106: 9 | E106: 2.1 Apoyo para Agentes Educativos Federalizados de la Estrategia de Visitas a Hogares (Modalidad No Escolarizada). | F106: 2.1.1 Traslado para cada Agente Educativo Federalizado. | G106: Pago de tiempo aire para llamadas y mensajes a las familias hasta por $400.00 mensuales. | H106: 163
B107: 2 | C107: 3 | D107: 9 | E107: 2.1 Apoyo para Agentes Educativos Federalizados de la Estrategia de Visitas a Hogares (Modalidad No Escolarizada). | F107: 2.1.1 Traslado para cada Agente Educativo Federalizado. | G107: 2. Impresión de fichas educativas para entrega a las familias hasta por $400.00 mensuales. | H107: 164
B108: 2 | C108: 3 | D108: 9 | E108: 2.1 Apoyo para Agentes Educativos Federalizados de la Estrategia de Visitas a Hogares (Modalidad No Escolarizada). | F108: 2.1.1 Traslado para cada Agente Educativo Federalizado. | G108: 3. Distribución de libros y materiales educativos a las familias hasta por $700.00 mensuales. | H108: 165
B109: 2 | C109: 3 | D109: 9 | E109: 2.1 Apoyo para Agentes Educativos Federalizados de la Estrategia de Visitas a Hogares (Modalidad No Escolarizada). | F109: 2.1.1 Traslado para cada Agente Educativo Federalizado. | G109: b) Adquisición de la Unidad didáctica (mochila) por un monto de hasta $ 12,000.00. | H109: 166
B110: 2 | C110: 4 | D110: 10 | E110: 2.2 Unidad Didáctica. | F110: 2.2.1 Compra de materiales que integran la Unidad Didáctica. | G110: 1 juego de pelotas sensoriales | H110: 167
B111: 2 | C111: 4 | D111: 10 | E111: 2.2 Unidad Didáctica. | F111: 2.2.1 Compra de materiales que integran la Unidad Didáctica. | G111: Memoria de sonidos 6 Piezas. | H111: 168
B112: 2 | C112: 4 | D112: 10 | E112: 2.2 Unidad Didáctica. | F112: 2.2.1 Compra de materiales que integran la Unidad Didáctica. | G112: Pintura digital no tóxica. | H112: 169
B113: 2 | C113: 4 | D113: 10 | E113: 2.2 Unidad Didáctica. | F113: 2.2.1 Compra de materiales que integran la Unidad Didáctica. | G113: 1 juego de títeres de dedo con 10 piezas | H113: 170
B114: 2 | C114: 4 | D114: 10 | E114: 2.2 Unidad Didáctica. | F114: 2.2.1 Compra de materiales que integran la Unidad Didáctica. | G114: Arena Moldeable no tóxica. | H114: 171
B115: 2 | C115: 4 | D115: 10 | E115: 2.2 Unidad Didáctica. | F115: 2.2.1 Compra de materiales que integran la Unidad Didáctica. | G115: 1 juego de changuitos gigantes de plástico con contenedor de plástico. | H115: 172
B116: 2 | C116: 4 | D116: 10 | E116: 2.2 Unidad Didáctica. | F116: 2.2.1 Compra de materiales que integran la Unidad Didáctica. | G116: 2 gorras de gabardina en color arena con bordado en color blanco. | H116: 173
B117: 2 | C117: 4 | D117: 10 | E117: 2.2 Unidad Didáctica. | F117: 2.2.1 Compra de materiales que integran la Unidad Didáctica. | G117: Bolsa ecológica reforzada en color guinda con logo de las playeras. | H117: 174
B118: 2 | C118: 4 | D118: 10 | E118: 2.2 Unidad Didáctica. | F118: 2.2.1 Compra de materiales que integran la Unidad Didáctica. | G118: 2 playeras tipo polo premium en sublimación color arena y botones, con Serigrafía en color blanco. | H118: 175
B119: 2 | C119: 4 | D119: 10 | E119: 2.2 Unidad Didáctica. | F119: 2.2.1 Compra de materiales que integran la Unidad Didáctica. | G119: Crayones de cera / Tamaño extra jumbo. | H119: 176
B120: 2 | C120: 4 | D120: 10 | E120: 2.2 Unidad Didáctica. | F120: 2.2.1 Compra de materiales que integran la Unidad Didáctica. | G120: Altavoz Bluetooth inalámbrico portátil, reproductor de MP3. | H120: 177
B121: 2 | C121: 4 | D121: 10 | E121: 2.2 Unidad Didáctica. | F121: 2.2.1 Compra de materiales que integran la Unidad Didáctica. | G121: Muñeca de niña morena en tela suave didáctica, relleno de algodón, con medidas no menor a 30 centímetros y no mayor a 40 centímetros, con tres cambios de ropa y huaraches. | H121: 178
B122: 2 | C122: 4 | D122: 10 | E122: 2.2 Unidad Didáctica. | F122: 2.2.1 Compra de materiales que integran la Unidad Didáctica. | G122: 3 dados grandes, varios colores, medidas: 5.5x5.5x5.5 cm. | H122: 180
B123: 2 | C123: 4 | D123: 10 | E123: 2.2 Unidad Didáctica. | F123: 2.2.1 Compra de materiales que integran la Unidad Didáctica. | G123: 3 rompecabezas de plástico y 3 rompecabezas de madera. | H123: 181
B124: 2 | C124: 4 | D124: 10 | E124: 2.2 Unidad Didáctica. | F124: 2.2.1 Compra de materiales que integran la Unidad Didáctica. | G124: Kit de manualidades | H124: 182
B125: 2 | C125: 4 | D125: 10 | E125: 2.2 Unidad Didáctica. | F125: 2.2.1 Compra de materiales que integran la Unidad Didáctica. | G125: Set de instrumentos musicales. | H125: 183
B126: 2 | C126: 4 | D126: 10 | E126: 2.2 Unidad Didáctica. | F126: 2.2.1 Compra de materiales que integran la Unidad Didáctica. | G126: Juguete de madera con animales de la granja para ensartar | H126: 184
B127: 2 | C127: 4 | D127: 10 | E127: 2.2 Unidad Didáctica. | F127: 2.2.1 Compra de materiales que integran la Unidad Didáctica. | G127: 1 mochila de poliéster de alta resistencia color negro con serigrafía color blanco. | H127: 185
B128: 3 | C128: 5 | D128: 13 | E128: 3.1 Apoyo para la operación de los CCAPI | F128: 3.1.3 Mobiliario y equipamiento | G128: 10 colchonetas con relleno de hule espuma y cubierta cerrada. | H128: 186
B129: 3 | C129: 5 | D129: 13 | E129: 3.1 Apoyo para la operación de los CCAPI | F129: 3.1.3 Mobiliario y equipamiento | G129: 2 estantes metálicos de 3 entrepaños. | H129: 187
B130: 3 | C130: 5 | D130: 13 | E130: 3.1 Apoyo para la operación de los CCAPI | F130: 3.1.3 Mobiliario y equipamiento | G130: 1 estufa de gas de 4 hornillas. | H130: 188
B131: 3 | C131: 5 | D131: 13 | E131: 3.1 Apoyo para la operación de los CCAPI | F131: 3.1.3 Mobiliario y equipamiento | G131: 1 tanque estacionario de gas LP con capacidad de100 lts y su instalación. | H131: 189
B132: 3 | C132: 5 | D132: 13 | E132: 3.1 Apoyo para la operación de los CCAPI | F132: 3.1.3 Mobiliario y equipamiento | G132: 1 campana grande para cocina. | H132: 190
B133: 3 | C133: 5 | D133: 13 | E133: 3.1 Apoyo para la operación de los CCAPI | F133: 3.1.3 Mobiliario y equipamiento | G133: 1 refrigerador. | H133: 191
B134: 3 | C134: 5 | D134: 13 | E134: 3.1 Apoyo para la operación de los CCAPI | F134: 3.1.3 Mobiliario y equipamiento | G134: 4 Mini Split. | H134: 192
B135: 3 | C135: 5 | D135: 13 | E135: 3.1 Apoyo para la operación de los CCAPI | F135: 3.1.3 Mobiliario y equipamiento | G135: 3 Baterías de cocina de acero quirúrgico. | H135: 193
B136: 3 | C136: 5 | D136: 13 | E136: 3.1 Apoyo para la operación de los CCAPI | F136: 3.1.3 Mobiliario y equipamiento | G136: 2 Colchones cambiadores antirreflujo memory foam 1.40 x 0.80 m. | H136: 194
B137: 3 | C137: 5 | D137: 13 | E137: 3.1 Apoyo para la operación de los CCAPI | F137: 3.1.3 Mobiliario y equipamiento | G137: 30 Paquetes de foami (etil vinil acetato) para tapete. | H137: 195
B138: 3 | C138: 5 | D138: 13 | E138: 3.1 Apoyo para la operación de los CCAPI | F138: 3.1.3 Mobiliario y equipamiento | G138: 2 Termómetros infrarrojos, intrauriculares y frontales. | H138: 196
B139: 3 | C139: 5 | D139: 13 | E139: 3.1 Apoyo para la operación de los CCAPI | F139: 3.1.3 Mobiliario y equipamiento | G139: 3 Ollas exprés. | H139: 197
B140: 3 | C140: 5 | D140: 13 | E140: 3.1 Apoyo para la operación de los CCAPI | F140: 3.1.3 Mobiliario y equipamiento | G140: 3 Sartenes de cerámica o titanio. Labio 35 cm. | H140: 198
B141: 3 | C141: 5 | D141: 13 | E141: 3.1 Apoyo para la operación de los CCAPI | F141: 3.1.3 Mobiliario y equipamiento | G141: 3 Sartenes de cerámica o titanio 30 cm. | H141: 199
B142: 3 | C142: 5 | D142: 13 | E142: 3.1 Apoyo para la operación de los CCAPI | F142: 3.1.3 Mobiliario y equipamiento | G142: 5 Botes Herméticos con tapa 9 L. | H142: 200
B143: 3 | C143: 5 | D143: 13 | E143: 3.1 Apoyo para la operación de los CCAPI | F143: 3.1.3 Mobiliario y equipamiento | G143: 100 Cucharas soperas Barcelona. | H143: 201
B144: 3 | C144: 5 | D144: 13 | E144: 3.1 Apoyo para la operación de los CCAPI | F144: 3.1.3 Mobiliario y equipamiento | G144: 5 Coladores doble malla alambre de 32 cm. | H144: 202
B145: 3 | C145: 5 | D145: 13 | E145: 3.1 Apoyo para la operación de los CCAPI | F145: 3.1.3 Mobiliario y equipamiento | G145: 10 Tablas de picar de colores para uso rudo. | H145: 203
B146: 3 | C146: 5 | D146: 13 | E146: 3.1 Apoyo para la operación de los CCAPI | F146: 3.1.3 Mobiliario y equipamiento | G146: 1 Vaporera para lactario. | H146: 204
B147: 3 | C147: 5 | D147: 13 | E147: 3.1 Apoyo para la operación de los CCAPI | F147: 3.1.3 Mobiliario y equipamiento | G147: 1 Horno de microondas. | H147: 205
B148: 3 | C148: 5 | D148: 13 | E148: 3.1 Apoyo para la operación de los CCAPI | F148: 3.1.3 Mobiliario y equipamiento | G148: 1 Extractor de leche eléctrico. | H148: 206
B149: 3 | C149: 5 | D149: 13 | E149: 3.1 Apoyo para la operación de los CCAPI | F149: 3.1.3 Mobiliario y equipamiento | G149: 2 Licuadoras. | H149: 207
B150: 3 | C150: 5 | D150: 13 | E150: 3.1 Apoyo para la operación de los CCAPI | F150: 3.1.3 Mobiliario y equipamiento | G150: 10 Toallas de cocina. | H150: 208
B151: 3 | C151: 5 | D151: 13 | E151: 3.1 Apoyo para la operación de los CCAPI | F151: 3.1.3 Mobiliario y equipamiento | G151: 1 Mesa grande para preparar alimentos. | H151: 209
B152: 3 | C152: 5 | D152: 13 | E152: 3.1 Apoyo para la operación de los CCAPI | F152: 3.1.3 Mobiliario y equipamiento | G152: 2 Organizadores de madera. | H152: 210
B153: 3 | C153: 5 | D153: 13 | E153: 3.1 Apoyo para la operación de los CCAPI | F153: 3.1.3 Mobiliario y equipamiento | G153: 10 Cestos para basura. | H153: 211
B154: 3 | C154: 5 | D154: 13 | E154: 3.1 Apoyo para la operación de los CCAPI | F154: 3.1.3 Mobiliario y equipamiento | G154: 5 Dispensadores de jabón líquido. | H154: 212
B155: 3 | C155: 5 | D155: 13 | E155: 3.1 Apoyo para la operación de los CCAPI | F155: 3.1.3 Mobiliario y equipamiento | G155: 2 Escurridores de trastes de acero inoxidable. | H155: 213
B156: 3 | C156: 5 | D156: 13 | E156: 3.1 Apoyo para la operación de los CCAPI | F156: 3.1.3 Mobiliario y equipamiento | G156: 5 Donas o herradura de tela para bebé. | H156: 214
B157: 3 | C157: 5 | D157: 13 | E157: 3.1 Apoyo para la operación de los CCAPI | F157: 3.1.3 Mobiliario y equipamiento | G157: 1 Pintarrón. | H157: 215
B158: 3 | C158: 5 | D158: 13 | E158: 3.1 Apoyo para la operación de los CCAPI | F158: 3.1.3 Mobiliario y equipamiento | G158: 1 Tarja de acero inoxidable con mueble para sala de lactancia. | H158: 216
B159: 3 | C159: 5 | D159: 13 | E159: 3.1 Apoyo para la operación de los CCAPI | F159: 3.1.3 Mobiliario y equipamiento | G159: 1 Sillón para sala de lactancia (tipo reposet). | H159: 217
B160: 3 | C160: 5 | D160: 13 | E160: 3.1 Apoyo para la operación de los CCAPI | F160: 3.1.3 Mobiliario y equipamiento | G160: 1 Esterilizador para sala de lactancia. | H160: 218
B161: 3 | C161: 5 | D161: 13 | E161: 3.1 Apoyo para la operación de los CCAPI | F161: 3.1.3 Mobiliario y equipamiento | G161: 1 Frigobar para sala de lactancia. | H161: 219
B162: 3 | C162: 5 | D162: 13 | E162: 3.1 Apoyo para la operación de los CCAPI | F162: 3.1.3 Mobiliario y equipamiento | G162: 2 Cambiadores de pañales para sala de lactancia. | H162: 220
B163: 3 | C163: 5 | D163: 13 | E163: 3.1 Apoyo para la operación de los CCAPI | F163: 3.1.3 Mobiliario y equipamiento | G163: 20 Sillas para adultos. | H163: 221
B164: 3 | C164: 5 | D164: 13 | E164: 3.1 Apoyo para la operación de los CCAPI | F164: 3.1.3 Mobiliario y equipamiento | G164: 20 Sillas tamaño infantil. | H164: 222
B165: 3 | C165: 5 | D165: 13 | E165: 3.1 Apoyo para la operación de los CCAPI | F165: 3.1.3 Mobiliario y equipamiento | G165: 5 Mesas tamaño infantil. | H165: 223
B166: 3 | C166: 5 | D166: 13 | E166: 3.1 Apoyo para la operación de los CCAPI | F166: 3.1.3 Mobiliario y equipamiento | G166: 40 Vasos de melamina. | H166: 224
B167: 3 | C167: 5 | D167: 13 | E167: 3.1 Apoyo para la operación de los CCAPI | F167: 3.1.3 Mobiliario y equipamiento | G167: 40 Platos de melamina. | H167: 225
B168: 3 | C168: 5 | D168: 13 | E168: 3.1 Apoyo para la operación de los CCAPI | F168: 3.1.3 Mobiliario y equipamiento | G168: 6 Charolas de melamina. | H168: 226
B169: 3 | C169: 5 | D169: 13 | E169: 3.1 Apoyo para la operación de los CCAPI | F169: 3.1.3 Mobiliario y equipamiento | G169: 5 Cuchillos de acero inoxidable para picar. | H169: 227
B170: 3 | C170: 5 | D170: 13 | E170: 3.1 Apoyo para la operación de los CCAPI | F170: 3.1.3 Mobiliario y equipamiento | G170: 40 juegos de cucharas, cuchillos y tenedores de acero inoxidable. | H170: 228
B171: 3 | C171: 5 | D171: 13 | E171: 3.1 Apoyo para la operación de los CCAPI | F171: 3.1.3 Mobiliario y equipamiento | G171: Artículos de limpieza y desinfección para brindar el servicio de alimentación | H171: 229
B172: 3 | C172: 5 | D172: 14 | E172: 3.1 Apoyo para la operación de los CCAPI | F172: 3.1.4 Recursos didácticos (Baúl). | G172: Juguete de madera con animales de la granja para ensartar. | H172: 230
B173: 3 | C173: 5 | D173: 14 | E173: 3.1 Apoyo para la operación de los CCAPI | F173: 3.1.4 Recursos didácticos (Baúl). | G173: 6 sonajas de plástico rígido no tóxico, de colores, sin rebabas ni asperezas | H173: 231
B174: 3 | C174: 5 | D174: 14 | E174: 3.1 Apoyo para la operación de los CCAPI | F174: 3.1.4 Recursos didácticos (Baúl). | G174: 6 manoplas de tela, en ambas caras una textura diferente, de franela y jerga, tela tipo aborregada y toalla; con puño elástico. Medida; 20 cm de largo (mano adulta). | H174: 232
B175: 3 | C175: 5 | D175: 14 | E175: 3.1 Apoyo para la operación de los CCAPI | F175: 3.1.4 Recursos didácticos (Baúl). | G175: 10 sacos de semillas relleno de arroz o linaza, de tela. Medidas: 15 x 15 cm. | H175: 233
B176: 3 | C176: 5 | D176: 14 | E176: 3.1 Apoyo para la operación de los CCAPI | F176: 3.1.4 Recursos didácticos (Baúl). | G176: 3 juegos de 8 animalitos de madera distintas especies, con acabado en pintura no tóxica. Medidas variadas entre 5 y 8 cm. | H176: 234
B177: 3 | C177: 5 | D177: 14 | E177: 3.1 Apoyo para la operación de los CCAPI | F177: 3.1.4 Recursos didácticos (Baúl). | G177: 3 bebés en tela suave didáctico, relleno de algodón, con medidas no menor a 30 cm y no mayor a 40 cm; se considera ropa para vestir niña y niño: ejemplo: 1 sudadera, chaleco a proporción con cierre ancho de cremallera y 2 botones didácticos con velcro, y pantalones a proporción con ajuste en resorte, zapatos con agujeta. | H177: 235
B178: 3 | C178: 5 | D178: 14 | E178: 3.1 Apoyo para la operación de los CCAPI | F178: 3.1.4 Recursos didácticos (Baúl). | G178: 8 títeres de mano (tamaño de mano adulta) hechos de tela suave, diseño único animales diferentes. Decorado relieve. Medidas: 30 cm de alto por 20 cm de ancho. | H178: 236
B179: 3 | C179: 5 | D179: 14 | E179: 3.1 Apoyo para la operación de los CCAPI | F179: 3.1.4 Recursos didácticos (Baúl). | G179: 7 títeres de mano (mano adulta) hechos de tela suave, con diseño de miembros de familia: papá, mamá, abuelos, hermanos, en tercera dimensión: (ojos movibles, cabello estambre). Medidas: 30 cm de alto por 20 cm de ancho | H179: 237
B180: 3 | C180: 5 | D180: 14 | E180: 3.1 Apoyo para la operación de los CCAPI | F180: 3.1.4 Recursos didácticos (Baúl). | G180: 5 set de instrumentos musicales con xilófono, maracas, castañuelas y triángulo | H180: 238
B181: 3 | C181: 5 | D181: 14 | E181: 3.1 Apoyo para la operación de los CCAPI | F181: 3.1.4 Recursos didácticos (Baúl). | G181: 10 Juegos de resaque en plástico no tóxico con 6 piezas de animales variados sin rebabas, de piezas gruesas, en base de plástico no tóxico, con impresión de figuras y colores vivos, con silueta forjada para facilitar la ubicación de las piezas. Medidas: 18 x 15 cm. | H181: 239
B182: 3 | C182: 5 | D182: 14 | E182: 3.1 Apoyo para la operación de los CCAPI | F182: 3.1.4 Recursos didácticos (Baúl). | G182: 10 juegos de moldes de plástico decreciente con 10 piezas. Moldes circulares de plástico rígido apilables no tóxico, sin rebabas ni asperezas y de colores vivos y diferente cada uno. Medidas: la pieza más grande de 8 cm de diámetro y a partir de esta, las piezas restantes tendrán un diámetro decreciente | H182: 240
B183: 3 | C183: 5 | D183: 14 | E183: 3.1 Apoyo para la operación de los CCAPI | F183: 3.1.4 Recursos didácticos (Baúl). | G183: 4 juegos de oruga de plástico no tóxico, con 8 aros de colores vivos para distintas combinaciones. | H183: 241
B184: 3 | C184: 5 | D184: 14 | E184: 3.1 Apoyo para la operación de los CCAPI | F184: 3.1.4 Recursos didácticos (Baúl). | G184: 8 juegos de 4 platos extendidos, 4 platos hondos, 4 vasos, así como 4 cucharas, 4 tenedores y 4 cuchillos sin filo en amarillo, azul, rojo y verde, hecho de plástico rígido no tóxico y sin rebabas ni asperezas. Medidas: el plato extendido tendrá un diámetro mínimo de 15 cm y a partir de este, las piezas restantes tendrán un tamaño a proporción. | H184: 242
B185: 3 | C185: 5 | D185: 14 | E185: 3.1 Apoyo para la operación de los CCAPI | F185: 3.1.4 Recursos didácticos (Baúl). | G185: 3 dados gigantes de 5.5x5.5x5.5 de plástico no tóxico, sin rebabas ni partes peligrosas. | H185: 243
B186: 3 | C186: 5 | D186: 14 | E186: 3.1 Apoyo para la operación de los CCAPI | F186: 3.1.4 Recursos didácticos (Baúl). | G186: 20 paquetes de crayolas, uno tamaño jumbo y otro extra jumbo. | H186: 244
B187: 3 | C187: 5 | D187: 14 | E187: 3.1 Apoyo para la operación de los CCAPI | F187: 3.1.4 Recursos didácticos (Baúl). | G187: 6 juegos de 16 cubos de plástico cada uno, de colores, sin rebabas ni asperezas, de material no tóxico en colores vivos, sin rebabas ni asperezas. Medidas: 3 x 3 x 3 cm cada pieza. | H187: 245
B188: 3 | C188: 5 | D188: 14 | E188: 3.1 Apoyo para la operación de los CCAPI | F188: 3.1.4 Recursos didácticos (Baúl). | G188: 1 juego de changuitos gigantes de plástico con caja de plástico. | H188: 246
B189: 3 | C189: 5 | D189: 14 | E189: 3.1 Apoyo para la operación de los CCAPI | F189: 3.1.4 Recursos didácticos (Baúl). | G189: 3 rompecabezas de plástico y 3 rompecabezas de madera. | H189: 247
B190: 3 | C190: 5 | D190: 14 | E190: 3.1 Apoyo para la operación de los CCAPI | F190: 3.1.4 Recursos didácticos (Baúl). | G190: 100 block de 100 hojas. | H190: 248
B191: 3 | C191: 5 | D191: 14 | E191: 3.1 Apoyo para la operación de los CCAPI | F191: 3.1.4 Recursos didácticos (Baúl). | G191: 10 juegos de ensarte con figuras de madera mayor a 4 cm con agujeta para ensartar. Figuras de plástico rígido no tóxico, sin rebabas ni asperezas, y una agujeta para ensartar (gruesa). Medidas: aproximadamente 3 cm, varía según la figura. (30 piezas, 5 juegos). | H191: 249
B192: 3 | C192: 5 | D192: 14 | E192: 3.1 Apoyo para la operación de los CCAPI | F192: 3.1.4 Recursos didácticos (Baúl). | G192: 1 memoria USB con colección de canciones infantiles. | H192: 250
B193: 3 | C193: 5 | D193: 14 | E193: 3.1 Apoyo para la operación de los CCAPI | F193: 3.1.4 Recursos didácticos (Baúl). | G193: 6 paquetes de aros de plástico para ensartar. | H193: 251
B194: 3 | C194: 5 | D194: 14 | E194: 3.1 Apoyo para la operación de los CCAPI | F194: 3.1.4 Recursos didácticos (Baúl). | G194: Contenedor de uso rudo, capacidad 125 litros, medidas: 91 x 40 cm. con tapa. | H194: 252
B195: 3 | C195: 5 | D195: 14 | E195: 3.1 Apoyo para la operación de los CCAPI | F195: 3.1.4 Recursos didácticos (Baúl). | G195: Tapete lúdico de seguridad. | H195: 253
B196: 3 | C196: 5 | D196: 14 | E196: 3.1 Apoyo para la operación de los CCAPI | F196: 3.1.4 Recursos didácticos (Baúl). | G196: 2 playeras tipo polo Premium en sublimación color arena y botones, con Serigrafía en color blanco. | H196: 254
B197: 3 | C197: 5 | D197: 14 | E197: 3.1 Apoyo para la operación de los CCAPI | F197: 3.1.4 Recursos didácticos (Baúl). | G197: Estanque de colores. | H197: 255
B198: 3 | C198: 5 | D198: 14 | E198: 3.1 Apoyo para la operación de los CCAPI | F198: 3.1.4 Recursos didácticos (Baúl). | G198: Caja con objetos varios (tornillos, tuercas de plástico sin rebabas). | H198: 256
B199: 3 | C199: 5 | D199: 14 | E199: 3.1 Apoyo para la operación de los CCAPI | F199: 3.1.4 Recursos didácticos (Baúl). | G199: Aros rítmicos 6 piezas. | H199: 257
B200: 3 | C200: 5 | D200: 14 | E200: 3.1 Apoyo para la operación de los CCAPI | F200: 3.1.4 Recursos didácticos (Baúl). | G200: 200 cofias desechables. | H200: 258
B201: 3 | C201: 5 | D201: 14 | E201: 3.1 Apoyo para la operación de los CCAPI | F201: 3.1.4 Recursos didácticos (Baúl). | G201: Casita didáctica teepe (1.90 x 1 metro). | H201: 259
B202: 3 | C202: 5 | D202: 14 | E202: 3.1 Apoyo para la operación de los CCAPI | F202: 3.1.4 Recursos didácticos (Baúl). | G202: Gises Jumbo. | H202: 260
... 88 more rows
